Workbook

Sheet Cover
C8: Developed for
C10: Oregon Health Authority - Oregon Immunization Program
C12: Contact:
C14: Lydia Luther
C15: LYDIA.M.LUTHER@dhsoha.state.or.us
C20: Developed by
C22: RTI Health Solutions (Project No. 0305745.000)
C24: Contacts:
C26: Jonathan Graham
C27: jgraham@rti.org
L30: Version: | M30: Final Version 2.0
L31: Date: | M31: 2023-11-01

Sheet Introduction
C2: Introduction
C8: Objectives
C10: This tool was developed to assist local public health authorities (LPHAs) in Oregon in understanding the costs assocated with vaccine administration and to estimate the costs per dose of providing those services. This provides the LPHAs with a fuller understanding of the economic costs of providing vaccines and supports the LPHAs' ability to negotiate appropriate, financially sustainable contracts with payers providing reimbursement for vaccinations.
C15: The tool produces two numbers:
D16:  | E16: Average administrative cost of providing a vaccine to a patient when given as a first dose at a patient visit
D17:  | E17: Average administrative cost of providing additional vaccine(s) to a patient when given as a subsequent dose at a patient visit
C19: Method
C21: The cost calculator is intended to capture all relevant direct and indirect economic costs that may be incurred by the LPHAs for their vaccination program. The calculator is designed to estimate both personnel costs and non-personnel costs associated with each activity related to immunization services.
C25: This tool uses inputs that define both the amount of resources used each time a vaccine is provided (e.g., minutes spent by a professional or supplies used on a task) and the cost of that resource (e.g., hourly cost for different staff categories or cost per supply unit).
C28: > | D28: Staff Category
D29: This corresponds to sheet "Step 1. Staff Category". The tool allows up to 15 different staff types to be included. Both salary (as hourly wage) and fringe (% of salary) are considered to estimate the cost for each personnel type. Two pre-filled staff personnel types are shown in the default settings (type of personnel and salary information) which are intended as examples for users to update with local information.
C34: > | D34: Vaccine Administered
D35: This corresponds to "Step 2. Vaccine Administered". On this sheet, there are three inputs: the annual number of vaccine orders placed; annual visits with vaccines administered; and the annual number of vaccines administered. Utilizing these three user-inputs, we can derive the two denominators needed to calculate the two average costs the tool produces.
D38:  | E38: The number of vaccines given as the first dose = the annual number of visits with vaccine administered
D39:  | E39: The number of vaccines given as subsequent doses = the annual number of vaccines administered - the annual number of visits with vaccine administered
C42: > | D42: Costs
D43: This corresponds to "Step 3. Costs". Five main cost categories are considered in the tool. The activities/tasks under each category are considered explicitly to account for the level of resources used (e.g. minutes spent by a professional or supplies used on a task) and the cost of that resource (e.g. hourly cost for different staff categories or cost per supply unit) each time a vaccine is administered.
D47: For each cost, there can be one or more types of personnel working on the activity. The default setting is only one personnel for each task. However, if there are more than one type of personnel, users can click on the plus icon to add up to 15 types in total. Users delete the added personnel by clicking the minus icon beside each personnel. More details on the icons are on the "User Guide" sheet.
C51: All the user-inputs are populated with default numbers. These default numbers serve as examples for users to better understand the tool and adapt the tool to their own use. Users can reset each sheet to the default settings by clicking the "Reset Sheet" button at the top of each user input sheet.

Sheet User Guide
C2: User Guide
C8: This sheet functions as a guide for using and navigating this tool. It explains the purpose and content of each worksheet, how to use the tool, and how to interpret results.
C11: Please note: the tool is locked and password protected. Users can only change the user-modifiable cells. More details are in the "Navigating the Cost Calculator" section below.
C14: Enabling Macros
C16: Many pieces of this tool, including tool navigation and running analyses, use Excel macros which carry out automated functions. Therefore, Excel macros must be enabled to access the full functionality of the tool. If macros are not already enabled in Excel, users will receive the following prompt near the top of the Excel screen (below the toolbar):
C23: Click the "Enable Content" button. You will now be able to use all the navigation and analysis buttons. You may need to enable macros again when you re-open the tool.
C25: For more details on enabling macros, users can visit the hyperlink below:
C26: http://office.microsoft.com/en-001/excel-help/enable-or-disable-macros-in-office-files-HA010354316.aspx?CTT=1
C28: Navigating the Cost Calculator
C30: To navigate through the tool, please use the tabs at the bottom of the workbook. The tool consist of four main sections:
C32: > | D32: 1. Cover
D33: The "Cover" tab is colored in blue (see screenshot on the right):
D34: Here, users can find basic information about the tool (title, objective, date being developed, etc.). Users can select the sheet by clicking on the tab. This sheet is locked.
C37: > | D37: 2. Introduction
D38: The "Introduction" tab is colored in light blue (see screenshot on the right):
D39: In this sheet, the tool objective and methods used are explained in detail. Users can refer to this sheet by clicking on the tab name to understand the background and the purpose of the tool. This sheet is locked.
C42: > | D42: 3. User Interface
D43: The three user interface sheets are colored in green (see screenshot below):
D46: These three tabs represent the three input components that the tool requires to calculate results. Users should go through each sheet to view and/or change the inputs as needed. There are instructions on each sheet to guide the user to interpret the data structure and to adapt the tool for each LPHA's own use.
D50: On these three sheets, users will see the following user-interactive features:
G52: Cells with white background. These cells cannot be modified by the users and are locked.
G54: Cells with grey background and dotted border. These cells are not locked and thus can be modified by the users by directly entering an alternative value. Clicking the "Reset Sheet" button will return the values to the original preset defaults.
G58: The areas titled "User Notes" with the light blue background are not locked and are reserved for users to keep their own notes or calculations.
G61: Cells with green background and dotted border. These cells contains a drop-down box. Click on the cell to make a selection. Upon click, a triangle icon will appear (see an example at the end). Click on the triangle for the drop-down list to display.
G68: Click this button to return to the "User Guide" sheet.
G70: Click this button to reset the current active sheet to default settings.
G72: This plus icon is only on sheet "Step 3. Costs" (column Q) and is shown beside each cost component. By clicking this plus sign, one additional personnel will be added to perform the corresponding task. A maximum of 14 personnel can be added. Since these plus icons sit very close to the minus icons, please try to click in the middle of the icon so that the correct command is initiated.
G77: This minus icon is only on sheet "Step 3. Costs" (column Q) and is only shown beside the personnel added by the user. By clicking the button, the corresponding row will be deleted, and any user inputs/selections in this row will be overwritten by defaults. Since these plus and minus icons sit vey close to each, please try to click in the middle of the icon so that the correct command is initiated.
G82: This question mark icon is only on sheet "Step 3. Costs" (column E and column U). Click this icon to display a pop-up window with additional information for the inputs in the corresponding section.
C85: > | D85: 4. Background Calculation Sheets
D86: There are two background sheets contained in this Excel workbook (see screenshot below). These sheets contain the calculations of the tool and should not be modified. These sheets are locked in the default settings.
C91: User Inputs
C93: > | D93: Step 1. Staff Category
D94: Use the grey cells in this sheet to enter up to 15 user-defined staff types and the associated salary and fringe information. The resulting hourly rate for each type is shown in the white cells in column M/N and should not be modified (these cells are also locked in the default settings).
D97: Whenever changes are made to the staff types listed in Column D/E, users should also be sure the personnel type selected on "Step 3. Costs" (column I) reflects the change made to the staff category list. For example, if a user replaces "Public Health Nurse I" with the same "Sally Smith" on this sheet, Sally's name should be manually selected from the Personnel Type drop-down menu on sheet "Step 3. Costs", where "Public Health Nurse I" was selected. Additionally, please also make sure the time previously entered for "Public Health Nurse I" is captured appropriately for Sally. If not, please adjust the time as well.
C103: > | D103: Step 2. Vaccine Administered
D104: On this sheet, three inputs for vaccine ordering and administration are shown. Users can adjust these numbers accordingly.
C106: > | D106: Step 3. Costs
D107: On this sheet, there are five big sections with colored boarders, representing the five cost categories: vaccine management, administrative the vaccines, supplies, administrative support, and other services. Users should view all sections before their use, then replace the default values with the LPHA's own values where necessary. If any of the cost components are not relevant, users should enter "0" for personnel cost and/or select "No Selection" for the personnel type, and enter "0" for non-personnel cost.
D112: Within each cost category, the cost components included under the category are listed. Click on the question mark for detailed explanations for each cost component at the beginning of each section. Each cost component has 7 or 8 corresponding entries. The function of these entries are explained as follows:
D116: § | E116: Cost
E117: The name for the cost is shown in this column. Users can click the question mark icon to view more detailed description for each cost.
D119: § | E119: Frequency
E120: This entry indicates how frequently (e.g., per year) the corresponding cost occurs. This is a user modifiable entry. Clicking on these cells will activate the drop-down and display available options. Users can then make a selection from the drop-down list. For certain costs, there is only one frequency that is applicable and thus available for the user. For example, the frequency for "Checking Out" cost under "Administering the Vaccine" category is only "per vaccine visit".
D125: § | E125: Personnel Cost
E126: The personnel cost columns are for personnel cost estimation. Three entries are needed and are explained as follows.
E128: − Type
E129: This entry indicates the type of personnel used for the corresponding activity. Users can select one type from the drop-down list, which will include all staff types reflected on sheet "Step 1. Staff Category".
E131: If the cost is not applicable to the clinic, users can select "No Selection" for this entry.
E132: If more than one personnel are involved in this activity, users can click the plus icon in column Q to add the additional personnel. Up to 15 personnel is allowed for the task. Users can delete the additional personnel (i.e., all the added personnel except the first one) by clicking the minus icon beside the corresponding row.
E136: − Time Spent
E137: This input is used to indicate the amount of time spent by the corresponding personnel per selected frequency. The unit for the time spent (mins, hours, or days) can be selected in the cell to the right.
E139: Note, there are four costs listed under the "Administering the Vaccines" cost category that are estimated by first dose and subsequent doses. Users should estimate and enter the time spent for both the first and subsequent doses.
E142: − Unit
E143: This column indicates the time unit (mins, hours, days). Users should verify the default unit shown in the cell and make adjustments using the drop-down when needed.
D146: § | E146: Non-Personnel Cost
E147: This is a one-time (per frequency indicated) cost for any non-personnel cost that should be included for the corresponding activity. For example, the cost of storage equipment (e.g., fridge, freezer, temperature tracking unit). If there is no related non-personnel cost, users can leave the entry blank or zero.
C151: Interpret Results
C153: The resulting average cost per first dose and average cost per subsequent dose are shown on the header of each of the three user input sheets in blue. The two values are automatically updated whenever a user input is modified.

Sheet Step 1. Staff Category
C2: Step 1. Staff Category | M2: Average cost per first dose | R2: =Calculations!C10 -> 15.60986833
M3: Average cost per subsequent dose | R3: =Calculations!C11 -> 13.08754333
U5: User Notes
B9: Please use the grey cells below to enter and adjust the staff types, wage, and fringe information for your LPHA. The default entries are provided as examples. The resulting hourly costs automatically update based on the corresponding values in the grey cells and are shown in the last column. Please see the instructions below for the details of each input.
D15: Staff Type | G15: Average Hourly Wage | J15: Additional Fringe (%) | M15: Resulting Hourly Cost
D17: Administrative Support | G17: 19.17 | J17: 0.3 | M17: =(1+J17)*G17 -> 24.921
D18: Public Health Nurse I | G18: 25.87 | J18: 0.3 | M18: =(1+J18)*G18 -> 33.631
M19: 0
M20: 0
M21: 0
M22: 0
M23: 0
M24: 0
M25: 0
M26: 0
M27: =(1+J27)*G27 -> 0
M28: 0
M29: 0
M30: 0
M31: 0
B35: Instructions:
B37:  | C37: Staff Type. Users can enter up to 15 staff type into the column. If any changes are made to this column, users should adjust all the applicable selections in column I on sheet "Step 3. Costs". For example, if Public Health Nurse I is changed to reflect a specific staff member's name, users should then select that name from the Personnel Type dropdown list on sheet "Step 3. Costs" where appropriate to reflect that staff member's activities.
B41:  | C41: Average Hourly Wage. The hourly wage for the personnel should be entered here. This tool does not calculate hourly values from annual salaries. If needed, users should derive that value outside of this tool.
B44:  | C44: Additional Fringe (%). Users can include any other associated personnel cost (e.g., health plan expenses) besides wage under this category. The cost is expressed as a percentage of the salary. For example, if the hourly wage rate is $20 and 30% is entered for fringe, this means the fringe is 30% * $20 = $6 (per hour). Thus, the resulting hourly cost is: $20 + (30% * $20) = $26.

Sheet Step 2. Vaccine Administered
C2: Step 2. Vaccine Administered | N2: Average cost per first dose | U2: =Calculations!C10 -> 15.60986833
N3: Average cost per subsequent dose | U3: =Calculations!C11 -> 13.08754333
X5: User Notes
B9: Please use the grey cells below to enter and adjust the values to reflect vaccine ordering and administration by your LPHA. The default values are placeholders intended to represent a sample county in Oregon.
E14: Parameters | N14: Value
E16: Annual Visits with Vaccines Administered | N16: 500
E18: Annual Number of Vaccines Administered | N18: 1000
E20: Annual Number of Vaccine Orders Placed | N20: 12
B24: Instructions:
B26:  | C26: Annual Visits with Vaccines Administered
C27: This value equals the total number of vaccines given as the first dose and thus is used to estimate the average cost per first dose.
B29:  | C29: Annual Number of Vaccines Administered
C30: In order to estimate the average cost per subsequent dose, this input is used to calculate the total number of vaccines given as subsequent doses which is equal to the annual number of vaccines administered minus the annual number of visits with vaccine administered.
B33:  | C33: Annual Number of Vaccine Orders Placed
C34: This value is used to estimate the total costs associated with placing, receiving, and paying all vaccine orders. This number is multiplied with the cost per order to get the total cost associated with all orders. The cost per order is estimated in the next step (i.e., Step 3. Costs).

Sheet Step 3. Costs
C2: Step 3. Costs of Providing Vaccines | O2: Average cost per first dose | U2: =Calculations!C10 -> 15.60986833
O3: Average cost per subsequent dose | U3: =Calculations!C11 -> 13.08754333
Y5: User Notes
B9: Vaccine Management
E10: Costs | G10: Frequency | I10: Personnel Cost | Y10: Vaccine Management
I11: Type | K11: Time Spent | O11: Unit | S11: Non-personnel Cost
E13: Order vaccines | G13: Per order | I13: =IF('Variables and Defaults'!D8='Variables and Defaults'!F8,'Variables and Defaults'!F8,'Variables and Defaults'!D8) -> Administrative Support | K13: 30 | O13: mins | U13: 0
I14: No Selection | K14: 0 | O14: mins
I15: No Selection | K15: 0 | O15: mins
I16: No Selection | K16: 0 | O16: mins
I17: No Selection | K17: 0 | O17: mins
I18: No Selection | K18: 0 | O18: mins
I19: No Selection | K19: 0 | O19: mins
I20: No Selection | K20: 0 | O20: mins
I21: No Selection | K21: 0 | O21: mins
I22: No Selection | K22: 0 | O22: mins
I23: No Selection | K23: 0 | O23: mins
I24: No Selection | K24: 0 | O24: mins
I25: No Selection | K25: 0 | O25: mins
I26: No Selection | K26: 0 | O26: mins
I27: No Selection | K27: 0 | O27: mins
E29: Receive vaccine orders | G29: Per order | I29: =IF('Variables and Defaults'!D8='Variables and Defaults'!F8,'Variables and Defaults'!F8,'Variables and Defaults'!D8) -> Administrative Support | K29: 1 | O29: hours | U29: 0
I30: No Selection | K30: 0 | O30: mins
I31: No Selection | K31: 0 | O31: mins
I32: No Selection | K32: 0 | O32: mins
I33: No Selection | K33: 0 | O33: mins
I34: No Selection | K34: 0 | O34: mins
I35: No Selection | K35: 0 | O35: mins
I36: No Selection | K36: 0 | O36: mins
I37: No Selection | K37: 0 | O37: mins
I38: No Selection | K38: 0 | O38: mins
I39: No Selection | K39: 0 | O39: mins
I40: No Selection | K40: 0 | O40: mins
I41: No Selection | K41: 0 | O41: mins
I42: No Selection | K42: 0 | O42: mins
I43: No Selection | K43: 0 | O43: mins
E45: Pay for vaccines | G45: Per order | I45: =IF('Variables and Defaults'!D8='Variables and Defaults'!F8,'Variables and Defaults'!F8,'Variables and Defaults'!D8) -> Administrative Support | K45: 10 | O45: mins | U45: 0
I46: No Selection | K46: 0 | O46: mins
I47: No Selection | K47: 0 | O47: mins
I48: No Selection | K48: 0 | O48: mins
I49: No Selection | K49: 0 | O49: mins
I50: No Selection | K50: 0 | O50: mins
I51: No Selection | K51: 0 | O51: mins
I52: No Selection | K52: 0 | O52: mins
I53: No Selection | K53: 0 | O53: mins
I54: No Selection | K54: 0 | O54: mins
I55: No Selection | K55: 0 | O55: mins
I56: No Selection | K56: 0 | O56: mins
I57: No Selection | K57: 0 | O57: mins
I58: No Selection | K58: 0 | O58: mins
I59: No Selection | K59: 0 | O59: mins
E61: Storage and handling | G61: Per year | I61: =IF('Variables and Defaults'!D8='Variables and Defaults'!F8,'Variables and Defaults'!F8,'Variables and Defaults'!D8) -> Administrative Support | K61: 12 | O61: hours | U61: 0
I62: No Selection | K62: 0 | O62: mins
I63: No Selection | K63: 0 | O63: mins
I64: No Selection | K64: 0 | O64: mins
I65: No Selection | K65: 0 | O65: mins
I66: No Selection | K66: 0 | O66: mins
I67: No Selection | K67: 0 | O67: mins
I68: No Selection | K68: 0 | O68: mins
I69: No Selection | K69: 0 | O69: mins
I70: No Selection | K70: 0 | O70: mins
I71: No Selection | K71: 0 | O71: mins
I72: No Selection | K72: 0 | O72: mins
I73: No Selection | K73: 0 | O73: mins
I74: No Selection | K74: 0 | O74: mins
I75: No Selection | K75: 0 | O75: mins
E77: Vaccine reconciliation | G77: Per year | I77: =IF('Variables and Defaults'!D8='Variables and Defaults'!F8,'Variables and Defaults'!F8,'Variables and Defaults'!D8) -> Administrative Support | K77: 12 | O77: hours | U77: 0
I78: No Selection | K78: 0 | O78: mins
I79: No Selection | K79: 0 | O79: mins
I80: No Selection | K80: 0 | O80: mins
I81: No Selection | K81: 0 | O81: mins
I82: No Selection | K82: 0 | O82: mins
I83: No Selection | K83: 0 | O83: mins
I84: No Selection | K84: 0 | O84: mins
I85: No Selection | K85: 0 | O85: mins
I86: No Selection | K86: 0 | O86: mins
I87: No Selection | K87: 0 | O87: mins
I88: No Selection | K88: 0 | O88: mins
I89: No Selection | K89: 0 | O89: mins
I90: No Selection | K90: 0 | O90: mins
I91: No Selection | K91: 0 | O91: mins
E93: Emergency | G93: Per year | I93: =IF('Variables and Defaults'!D8='Variables and Defaults'!F8,'Variables and Defaults'!F8,'Variables and Defaults'!D8) -> Administrative Support | K93: 5 | O93: days | U93: 1000
I94: No Selection | K94: 0 | O94: mins
I95: No Selection | K95: 0 | O95: mins
I96: No Selection | K96: 0 | O96: mins
I97: No Selection | K97: 0 | O97: mins
I98: No Selection | K98: 0 | O98: mins
I99: No Selection | K99: 0 | O99: mins
I100: No Selection | K100: 0 | O100: mins
I101: No Selection | K101: 0 | O101: mins
I102: No Selection | K102: 0 | O102: mins
I103: No Selection | K103: 0 | O103: mins
I104: No Selection | K104: 0 | O104: mins
I105: No Selection | K105: 0 | O105: mins
I106: No Selection | K106: 0 | O106: mins
I107: No Selection | K107: 0 | O107: mins
B110: Administering the Vaccine
E111: Costs | G111: Frequency | I111: Personnel Cost | Y111: Administering the Vaccine
I112: Type | K112: Time Spent | O112: Unit | S112: Non-personnel Cost
E114: Registration | G114: Per vaccine visit | I114: =IF('Variables and Defaults'!D9=0,'Variables and Defaults'!D8,IF('Variables and Defaults'!D9='Variables and Defaults'!F9,'Variables and Defaults'!F9,'Variables and Defaults'!D9)) -> Public Health Nurse I | K114: 2 | O114: mins | U114: 0
I115: No Selection | K115: 0 | O115: mins
I116: No Selection | K116: 0 | O116: mins
I117: No Selection | K117: 0 | O117: mins
I118: No Selection | K118: 0 | O118: mins
I119: No Selection | K119: 0 | O119: mins
I120: No Selection | K120: 0 | O120: mins
I121: No Selection | K121: 0 | O121: mins
I122: No Selection | K122: 0 | O122: mins
I123: No Selection | K123: 0 | O123: mins
I124: No Selection | K124: 0 | O124: mins
I125: No Selection | K125: 0 | O125: mins
I126: No Selection | K126: 0 | O126: mins
I127: No Selection | K127: 0 | O127: mins
I128: No Selection | K128: 0 | O128: mins
K130: First dose | M130: Subsequent dose | S130: First dose | U130: Subsequent dose
E132: Assessment/discussion of shots due | G132: Per vaccine visit | I132: =IF('Variables and Defaults'!D9=0,'Variables and Defaults'!D8,IF('Variables and Defaults'!D9='Variables and Defaults'!F9,'Variables and Defaults'!F9,'Variables and Defaults'!D9)) -> Public Health Nurse I | K132: 2 | M132: 0.5 | O132: mins | S132: 0 | U132: 0
I133: No Selection | K133: 0 | M133: 0 | O133: mins
I134: No Selection | K134: 0 | M134: 0 | O134: mins
I135: No Selection | K135: 0 | M135: 0 | O135: mins
I136: No Selection | K136: 0 | M136: 0 | O136: mins
I137: No Selection | K137: 0 | M137: 0 | O137: mins
I138: No Selection | K138: 0 | M138: 0 | O138: mins
I139: No Selection | K139: 0 | M139: 0 | O139: mins
I140: No Selection | K140: 0 | M140: 0 | O140: mins
I141: No Selection | K141: 0 | M141: 0 | O141: mins
I142: No Selection | K142: 0 | M142: 0 | O142: mins
I143: No Selection | K143: 0 | M143: 0 | O143: mins
I144: No Selection | K144: 0 | M144: 0 | O144: mins
I145: No Selection | K145: 0 | M145: 0 | O145: mins
I146: No Selection | K146: 0 | M146: 0 | O146: mins
E148: Vaccine-specific education | G148: Per vaccine visit | I148: =IF('Variables and Defaults'!D9=0,'Variables and Defaults'!D8,IF('Variables and Defaults'!D9='Variables and Defaults'!F9,'Variables and Defaults'!F9,'Variables and Defaults'!D9)) -> Public Health Nurse I | K148: 1 | O148: mins | U148: 0
I149: No Selection | K149: 0 | O149: mins
I150: No Selection | K150: 0 | O150: mins
I151: No Selection | K151: 0 | O151: mins
I152: No Selection | K152: 0 | O152: mins
I153: No Selection | K153: 0 | O153: mins
I154: No Selection | K154: 0 | O154: mins
I155: No Selection | K155: 0 | O155: mins
I156: No Selection | K156: 0 | O156: mins
I157: No Selection | K157: 0 | O157: mins
I158: No Selection | K158: 0 | O158: mins
I159: No Selection | K159: 0 | O159: mins
I160: No Selection | K160: 0 | O160: mins
I161: No Selection | K161: 0 | O161: mins
I162: No Selection | K162: 0 | O162: mins
K164: First dose | M164: Subsequent dose | S164: First dose | U164: Subsequent dose
E166: Retrieval of vaccine and supplies | G166: Per vaccine visit | I166: =IF('Variables and Defaults'!D9=0,'Variables and Defaults'!D8,IF('Variables and Defaults'!D9='Variables and Defaults'!F9,'Variables and Defaults'!F9,'Variables and Defaults'!D9)) -> Public Health Nurse I | K166: 2 | M166: 0.5 | O166: mins | S166: 0 | U166: 0
I167: No Selection | K167: 0 | M167: 0 | O167: mins
I168: No Selection | K168: 0 | M168: 0 | O168: mins
I169: No Selection | K169: 0 | M169: 0 | O169: mins
I170: No Selection | K170: 0 | M170: 0 | O170: mins
I171: No Selection | K171: 0 | M171: 0 | O171: mins
I172: No Selection | K172: 0 | M172: 0 | O172: mins
I173: No Selection | K173: 0 | M173: 0 | O173: mins
I174: No Selection | K174: 0 | M174: 0 | O174: mins
I175: No Selection | K175: 0 | M175: 0 | O175: mins
I176: No Selection | K176: 0 | M176: 0 | O176: mins
I177: No Selection | K177: 0 | M177: 0 | O177: mins
I178: No Selection | K178: 0 | M178: 0 | O178: mins
I179: No Selection | K179: 0 | M179: 0 | O179: mins
I180: No Selection | K180: 0 | M180: 0 | O180: mins
K182: First dose | M182: Subsequent dose | S182: First dose | U182: Subsequent dose
E184: Administering vaccine | G184: Per vaccine visit | I184: =IF('Variables and Defaults'!D9=0,'Variables and Defaults'!D8,IF('Variables and Defaults'!D9='Variables and Defaults'!F9,'Variables and Defaults'!F9,'Variables and Defaults'!D9)) -> Public Health Nurse I | K184: 2 | M184: 0.5 | O184: mins | S184: 0 | U184: 0
I185: No Selection | K185: 0 | M185: 0 | O185: mins
I186: No Selection | K186: 0 | M186: 0 | O186: mins
I187: No Selection | K187: 0 | M187: 0 | O187: mins
I188: No Selection | K188: 0 | M188: 0 | O188: mins
I189: No Selection | K189: 0 | M189: 0 | O189: mins
I190: No Selection | K190: 0 | M190: 0 | O190: mins
I191: No Selection | K191: 0 | M191: 0 | O191: mins
I192: No Selection | K192: 0 | M192: 0 | O192: mins
I193: No Selection | K193: 0 | M193: 0 | O193: mins
I194: No Selection | K194: 0 | M194: 0 | O194: mins
I195: No Selection | K195: 0 | M195: 0 | O195: mins
I196: No Selection | K196: 0 | M196: 0 | O196: mins
I197: No Selection | K197: 0 | M197: 0 | O197: mins
I198: No Selection | K198: 0 | M198: 0 | O198: mins
E200: Wastage disposal | G200: Per vaccine visit | I200: =IF('Variables and Defaults'!D9=0,'Variables and Defaults'!D8,IF('Variables and Defaults'!D9='Variables and Defaults'!F9,'Variables and Defaults'!F9,'Variables and Defaults'!D9)) -> Public Health Nurse I | K200: 1 | O200: mins | U200: 0
I201: No Selection | K201: 0 | O201: mins
I202: No Selection | K202: 0 | O202: mins
I203: No Selection | K203: 0 | O203: mins
I204: No Selection | K204: 0 | O204: mins
I205: No Selection | K205: 0 | O205: mins
I206: No Selection | K206: 0 | O206: mins
I207: No Selection | K207: 0 | O207: mins
I208: No Selection | K208: 0 | O208: mins
I209: No Selection | K209: 0 | O209: mins
I210: No Selection | K210: 0 | O210: mins
I211: No Selection | K211: 0 | O211: mins
I212: No Selection | K212: 0 | O212: mins
I213: No Selection | K213: 0 | O213: mins
I214: No Selection | K214: 0 | O214: mins
E216: Checking out | G216: Per vaccine visit | I216: =IF('Variables and Defaults'!D8='Variables and Defaults'!F8,'Variables and Defaults'!F8,'Variables and Defaults'!D8) -> Administrative Support | K216: 1 | O216: mins | U216: 0
I217: No Selection | K217: 0 | O217: mins
I218: No Selection | K218: 0 | O218: mins
I219: No Selection | K219: 0 | O219: mins
I220: No Selection | K220: 0 | O220: mins
I221: No Selection | K221: 0 | O221: mins
I222: No Selection | K222: 0 | O222: mins
I223: No Selection | K223: 0 | O223: mins
... 197 more rows

Sheet Variables and Defaults
A2: Note to the users: this sheet stores all the variables and their current and default values. The sheet should not be modified by the users and therefore is locked.
A5: Step 1. Staff Category
B7: Staff Type | D7: Current User Inputs | F7: Default
B8: Staff 1 | D8: ='Step 1. Staff Category'!D17 -> Administrative Support | F8: Administrative Support
B9: Staff 2 | D9: ='Step 1. Staff Category'!D18 -> Public Health Nurse I | F9: Public Health Nurse I
B10: Staff 3 | D10: ='Step 1. Staff Category'!D19 -> 0
B11: Staff 4 | D11: ='Step 1. Staff Category'!D20 -> 0
B12: Staff 5 | D12: ='Step 1. Staff Category'!D21 -> 0
B13: Staff 6 | D13: ='Step 1. Staff Category'!D22 -> 0
B14: Staff 7 | D14: ='Step 1. Staff Category'!D23 -> 0
B15: Staff 8 | D15: ='Step 1. Staff Category'!D24 -> 0
B16: Staff 9 | D16: ='Step 1. Staff Category'!D25 -> 0
B17: Staff 10 | D17: ='Step 1. Staff Category'!D26 -> 0
B18: Staff 11 | D18: ='Step 1. Staff Category'!D27 -> 0
B19: Staff 12 | D19: ='Step 1. Staff Category'!D28 -> 0
B20: Staff 13 | D20: ='Step 1. Staff Category'!D29 -> 0
B21: Staff 14 | D21: ='Step 1. Staff Category'!D30 -> 0
B22: Staff 15 | D22: ='Step 1. Staff Category'!D31 -> 0
B24: Hourly Wage | H24: Annual Salary
A25: 1 | B25: Administrative Support | D25: ='Step 1. Staff Category'!G17 -> 19.17 | F25: =H25/$K$26 -> 19.16495551 | H25: 40000 | K25: # of working hours in a year
A26: 2 | B26: Public Health Nurse I | D26: ='Step 1. Staff Category'!G18 -> 25.87 | F26: =H26/$K$26 -> 25.87268994 | H26: 54000 | K26: =K28*8 -> 2087.142857
A27: 3 | D27: ='Step 1. Staff Category'!G19 -> 0 | K27: # of working days in a year
A28: 4 | D28: ='Step 1. Staff Category'!G20 -> 0 | K28: =(365.25/7)*5 -> 260.8928571
A29: 5 | D29: ='Step 1. Staff Category'!G21 -> 0
A30: 6 | D30: ='Step 1. Staff Category'!G22 -> 0
A31: 7 | D31: ='Step 1. Staff Category'!G23 -> 0
A32: 8 | D32: ='Step 1. Staff Category'!G24 -> 0
A33: 9 | D33: ='Step 1. Staff Category'!G25 -> 0
A34: 10 | D34: ='Step 1. Staff Category'!G26 -> 0
A35: 11 | D35: ='Step 1. Staff Category'!G27 -> 0
A36: 12 | D36: ='Step 1. Staff Category'!G28 -> 0
A37: 13 | D37: ='Step 1. Staff Category'!G29 -> 0
A38: 14 | D38: ='Step 1. Staff Category'!G30 -> 0
A39: 15 | D39: ='Step 1. Staff Category'!G31 -> 0
B41: Additional Fringe
A42: 1 | B42: Administrative Support | D42: ='Step 1. Staff Category'!J17 -> 0.3 | F42: 0.3
A43: 2 | B43: Public Health Nurse I | D43: ='Step 1. Staff Category'!J18 -> 0.3 | F43: 0.3
A44: 3 | D44: ='Step 1. Staff Category'!J19 -> 0
A45: 4 | D45: ='Step 1. Staff Category'!J20 -> 0
A46: 5 | D46: ='Step 1. Staff Category'!J21 -> 0
A47: 6 | D47: ='Step 1. Staff Category'!J22 -> 0
A48: 7 | D48: ='Step 1. Staff Category'!J23 -> 0
A49: 8 | D49: ='Step 1. Staff Category'!J24 -> 0
A50: 9 | D50: ='Step 1. Staff Category'!J25 -> 0
A51: 10 | D51: ='Step 1. Staff Category'!J26 -> 0
A52: 11 | D52: ='Step 1. Staff Category'!J27 -> 0
A53: 12 | D53: ='Step 1. Staff Category'!J28 -> 0
A54: 13 | D54: ='Step 1. Staff Category'!J29 -> 0
A55: 14 | D55: ='Step 1. Staff Category'!J30 -> 0
A56: 15 | D56: ='Step 1. Staff Category'!J31 -> 0
A59: Step 2. Vaccine Administered
B61: Parameters | D61: Current User Inputs | F61: Default (placeholders)
B62: Annual Visit with Vaccines Administered | D62: ='Step 2. Vaccine Administered'!N16 -> 500 | F62: 500
B63: Annual Number of Vaccines Administered | D63: ='Step 2. Vaccine Administered'!N18 -> 1000 | F63: 1000
B64: Annual order | D64: ='Step 2. Vaccine Administered'!N20 -> 12 | F64: 12
A67: Step 3. Costs
D69: Current User Inputs | L69: Default (placeholders)
B70: Vaccine Management | C70: Frequency | D70: Personnel Type | E70: Time | F70: Unit | H70: Non-Personnel Cost | K70: Frequency | L70: Personnel Type | M70: Time | N70: Unit | P70: Non-Personnel Cost
A71: 1 | B71: Order vaccines | C71: ='Step 3. Costs'!G13 -> Per order | H71: ='Step 3. Costs'!U13 -> 0 | K71: Per order | P71: 0 | Q71: placeholder
B72: Personnel 1 | D72: ='Step 3. Costs'!I13 -> Administrative Support | E72: ='Step 3. Costs'!K13 -> 30 | F72: ='Step 3. Costs'!O13 -> mins | L72: =IF('Variables and Defaults'!D8='Variables and Defaults'!F8,'Variables and Defaults'!F8,'Variables and Defaults'!D8) -> Administrative Support | M72: 30 | N72: mins
B73: Personnel 2 | D73: ='Step 3. Costs'!I14 -> No Selection | E73: ='Step 3. Costs'!K14 -> 0 | F73: ='Step 3. Costs'!O14 -> mins | L73: No Selection | M73: 0 | N73: mins
B74: Personnel 3 | D74: ='Step 3. Costs'!I15 -> No Selection | E74: ='Step 3. Costs'!K15 -> 0 | F74: ='Step 3. Costs'!O15 -> mins | L74: No Selection | M74: 0 | N74: mins
B75: Personnel 4 | D75: ='Step 3. Costs'!I16 -> No Selection | E75: ='Step 3. Costs'!K16 -> 0 | F75: ='Step 3. Costs'!O16 -> mins | L75: No Selection | M75: 0 | N75: mins
B76: Personnel 5 | D76: ='Step 3. Costs'!I17 -> No Selection | E76: ='Step 3. Costs'!K17 -> 0 | F76: ='Step 3. Costs'!O17 -> mins | L76: No Selection | M76: 0 | N76: mins
B77: Personnel 6 | D77: ='Step 3. Costs'!I18 -> No Selection | E77: ='Step 3. Costs'!K18 -> 0 | F77: ='Step 3. Costs'!O18 -> mins | L77: No Selection | M77: 0 | N77: mins
B78: Personnel 7 | D78: ='Step 3. Costs'!I19 -> No Selection | E78: ='Step 3. Costs'!K19 -> 0 | F78: ='Step 3. Costs'!O19 -> mins | L78: No Selection | M78: 0 | N78: mins
B79: Personnel 8 | D79: ='Step 3. Costs'!I20 -> No Selection | E79: ='Step 3. Costs'!K20 -> 0 | F79: ='Step 3. Costs'!O20 -> mins | L79: No Selection | M79: 0 | N79: mins
B80: Personnel 9 | D80: ='Step 3. Costs'!I21 -> No Selection | E80: ='Step 3. Costs'!K21 -> 0 | F80: ='Step 3. Costs'!O21 -> mins | L80: No Selection | M80: 0 | N80: mins
B81: Personnel 10 | D81: ='Step 3. Costs'!I22 -> No Selection | E81: ='Step 3. Costs'!K22 -> 0 | F81: ='Step 3. Costs'!O22 -> mins | L81: No Selection | M81: 0 | N81: mins
B82: Personnel 11 | D82: ='Step 3. Costs'!I23 -> No Selection | E82: ='Step 3. Costs'!K23 -> 0 | F82: ='Step 3. Costs'!O23 -> mins | L82: No Selection | M82: 0 | N82: mins
B83: Personnel 12 | D83: ='Step 3. Costs'!I24 -> No Selection | E83: ='Step 3. Costs'!K24 -> 0 | F83: ='Step 3. Costs'!O24 -> mins | L83: No Selection | M83: 0 | N83: mins
B84: Personnel 13 | D84: ='Step 3. Costs'!I25 -> No Selection | E84: ='Step 3. Costs'!K25 -> 0 | F84: ='Step 3. Costs'!O25 -> mins | L84: No Selection | M84: 0 | N84: mins
B85: Personnel 14 | D85: ='Step 3. Costs'!I26 -> No Selection | E85: ='Step 3. Costs'!K26 -> 0 | F85: ='Step 3. Costs'!O26 -> mins | L85: No Selection | M85: 0 | N85: mins
B86: Personnel 15 | D86: ='Step 3. Costs'!I27 -> No Selection | E86: ='Step 3. Costs'!K27 -> 0 | F86: ='Step 3. Costs'!O27 -> mins | L86: No Selection | M86: 0 | N86: mins
A87: 2 | B87: Receive vaccines | C87: ='Step 3. Costs'!G29 -> Per order | H87: ='Step 3. Costs'!U29 -> 0 | K87: Per order | P87: 0 | Q87: placeholder
B88: Personnel 1 | D88: ='Step 3. Costs'!I29 -> Administrative Support | E88: ='Step 3. Costs'!K29 -> 1 | F88: ='Step 3. Costs'!O29 -> hours | L88: =IF('Variables and Defaults'!D8='Variables and Defaults'!F8,'Variables and Defaults'!F8,'Variables and Defaults'!D8) -> Administrative Support | M88: 1 | N88: hours
B89: Personnel 2 | D89: ='Step 3. Costs'!I30 -> No Selection | E89: ='Step 3. Costs'!K30 -> 0 | F89: ='Step 3. Costs'!O30 -> mins | L89: No Selection | M89: 0 | N89: mins
B90: Personnel 3 | D90: ='Step 3. Costs'!I31 -> No Selection | E90: ='Step 3. Costs'!K31 -> 0 | F90: ='Step 3. Costs'!O31 -> mins | L90: No Selection | M90: 0 | N90: mins
B91: Personnel 4 | D91: ='Step 3. Costs'!I32 -> No Selection | E91: ='Step 3. Costs'!K32 -> 0 | F91: ='Step 3. Costs'!O32 -> mins | L91: No Selection | M91: 0 | N91: mins
B92: Personnel 5 | D92: ='Step 3. Costs'!I33 -> No Selection | E92: ='Step 3. Costs'!K33 -> 0 | F92: ='Step 3. Costs'!O33 -> mins | L92: No Selection | M92: 0 | N92: mins
B93: Personnel 6 | D93: ='Step 3. Costs'!I34 -> No Selection | E93: ='Step 3. Costs'!K34 -> 0 | F93: ='Step 3. Costs'!O34 -> mins | L93: No Selection | M93: 0 | N93: mins
B94: Personnel 7 | D94: ='Step 3. Costs'!I35 -> No Selection | E94: ='Step 3. Costs'!K35 -> 0 | F94: ='Step 3. Costs'!O35 -> mins | L94: No Selection | M94: 0 | N94: mins
B95: Personnel 8 | D95: ='Step 3. Costs'!I36 -> No Selection | E95: ='Step 3. Costs'!K36 -> 0 | F95: ='Step 3. Costs'!O36 -> mins | L95: No Selection | M95: 0 | N95: mins
B96: Personnel 9 | D96: ='Step 3. Costs'!I37 -> No Selection | E96: ='Step 3. Costs'!K37 -> 0 | F96: ='Step 3. Costs'!O37 -> mins | L96: No Selection | M96: 0 | N96: mins
B97: Personnel 10 | D97: ='Step 3. Costs'!I38 -> No Selection | E97: ='Step 3. Costs'!K38 -> 0 | F97: ='Step 3. Costs'!O38 -> mins | L97: No Selection | M97: 0 | N97: mins
B98: Personnel 11 | D98: ='Step 3. Costs'!I39 -> No Selection | E98: ='Step 3. Costs'!K39 -> 0 | F98: ='Step 3. Costs'!O39 -> mins | L98: No Selection | M98: 0 | N98: mins
B99: Personnel 12 | D99: ='Step 3. Costs'!I40 -> No Selection | E99: ='Step 3. Costs'!K40 -> 0 | F99: ='Step 3. Costs'!O40 -> mins | L99: No Selection | M99: 0 | N99: mins
B100: Personnel 13 | D100: ='Step 3. Costs'!I41 -> No Selection | E100: ='Step 3. Costs'!K41 -> 0 | F100: ='Step 3. Costs'!O41 -> mins | L100: No Selection | M100: 0 | N100: mins
B101: Personnel 14 | D101: ='Step 3. Costs'!I42 -> No Selection | E101: ='Step 3. Costs'!K42 -> 0 | F101: ='Step 3. Costs'!O42 -> mins | L101: No Selection | M101: 0 | N101: mins
B102: Personnel 15 | D102: ='Step 3. Costs'!I43 -> No Selection | E102: ='Step 3. Costs'!K43 -> 0 | F102: ='Step 3. Costs'!O43 -> mins | L102: No Selection | M102: 0 | N102: mins
A103: 3 | B103: Pay for vaccines (when due) / bookkeeping | C103: ='Step 3. Costs'!G45 -> Per order | H103: ='Step 3. Costs'!U45 -> 0 | K103: Per order | P103: 0 | Q103: placeholder
B104: Personnel 1 | D104: ='Step 3. Costs'!I45 -> Administrative Support | E104: ='Step 3. Costs'!K45 -> 10 | F104: ='Step 3. Costs'!O45 -> mins | L104: =IF('Variables and Defaults'!D8='Variables and Defaults'!F8,'Variables and Defaults'!F8,'Variables and Defaults'!D8) -> Administrative Support | M104: 10 | N104: mins
B105: Personnel 2 | D105: ='Step 3. Costs'!I46 -> No Selection | E105: ='Step 3. Costs'!K46 -> 0 | F105: ='Step 3. Costs'!O46 -> mins | L105: No Selection | M105: 0 | N105: mins
B106: Personnel 3 | D106: ='Step 3. Costs'!I47 -> No Selection | E106: ='Step 3. Costs'!K47 -> 0 | F106: ='Step 3. Costs'!O47 -> mins | L106: No Selection | M106: 0 | N106: mins
B107: Personnel 4 | D107: ='Step 3. Costs'!I48 -> No Selection | E107: ='Step 3. Costs'!K48 -> 0 | F107: ='Step 3. Costs'!O48 -> mins | L107: No Selection | M107: 0 | N107: mins
B108: Personnel 5 | D108: ='Step 3. Costs'!I49 -> No Selection | E108: ='Step 3. Costs'!K49 -> 0 | F108: ='Step 3. Costs'!O49 -> mins | L108: No Selection | M108: 0 | N108: mins
B109: Personnel 6 | D109: ='Step 3. Costs'!I50 -> No Selection | E109: ='Step 3. Costs'!K50 -> 0 | F109: ='Step 3. Costs'!O50 -> mins | L109: No Selection | M109: 0 | N109: mins
B110: Personnel 7 | D110: ='Step 3. Costs'!I51 -> No Selection | E110: ='Step 3. Costs'!K51 -> 0 | F110: ='Step 3. Costs'!O51 -> mins | L110: No Selection | M110: 0 | N110: mins
B111: Personnel 8 | D111: ='Step 3. Costs'!I52 -> No Selection | E111: ='Step 3. Costs'!K52 -> 0 | F111: ='Step 3. Costs'!O52 -> mins | L111: No Selection | M111: 0 | N111: mins
B112: Personnel 9 | D112: ='Step 3. Costs'!I53 -> No Selection | E112: ='Step 3. Costs'!K53 -> 0 | F112: ='Step 3. Costs'!O53 -> mins | L112: No Selection | M112: 0 | N112: mins
B113: Personnel 10 | D113: ='Step 3. Costs'!I54 -> No Selection | E113: ='Step 3. Costs'!K54 -> 0 | F113: ='Step 3. Costs'!O54 -> mins | L113: No Selection | M113: 0 | N113: mins
B114: Personnel 11 | D114: ='Step 3. Costs'!I55 -> No Selection | E114: ='Step 3. Costs'!K55 -> 0 | F114: ='Step 3. Costs'!O55 -> mins | L114: No Selection | M114: 0 | N114: mins
B115: Personnel 12 | D115: ='Step 3. Costs'!I56 -> No Selection | E115: ='Step 3. Costs'!K56 -> 0 | F115: ='Step 3. Costs'!O56 -> mins | L115: No Selection | M115: 0 | N115: mins
B116: Personnel 13 | D116: ='Step 3. Costs'!I57 -> No Selection | E116: ='Step 3. Costs'!K57 -> 0 | F116: ='Step 3. Costs'!O57 -> mins | L116: No Selection | M116: 0 | N116: mins
B117: Personnel 14 | D117: ='Step 3. Costs'!I58 -> No Selection | E117: ='Step 3. Costs'!K58 -> 0 | F117: ='Step 3. Costs'!O58 -> mins | L117: No Selection | M117: 0 | N117: mins
B118: Personnel 15 | D118: ='Step 3. Costs'!I59 -> No Selection | E118: ='Step 3. Costs'!K59 -> 0 | F118: ='Step 3. Costs'!O59 -> mins | L118: No Selection | M118: 0 | N118: mins
A119: 4 | B119: Storage and Handling | C119: ='Step 3. Costs'!G61 -> Per year | H119: ='Step 3. Costs'!U61 -> 0 | K119: Per year | P119: 0 | Q119: placeholder
B120: Personnel 1 | D120: ='Step 3. Costs'!I61 -> Administrative Support | E120: ='Step 3. Costs'!K61 -> 12 | F120: ='Step 3. Costs'!O61 -> hours | L120: =IF('Variables and Defaults'!D8='Variables and Defaults'!F8,'Variables and Defaults'!F8,'Variables and Defaults'!D8) -> Administrative Support | M120: 12 | N120: hours
B121: Personnel 2 | D121: ='Step 3. Costs'!I62 -> No Selection | E121: ='Step 3. Costs'!K62 -> 0 | F121: ='Step 3. Costs'!O62 -> mins | L121: No Selection | M121: 0 | N121: mins
B122: Personnel 3 | D122: ='Step 3. Costs'!I63 -> No Selection | E122: ='Step 3. Costs'!K63 -> 0 | F122: ='Step 3. Costs'!O63 -> mins | L122: No Selection | M122: 0 | N122: mins
B123: Personnel 4 | D123: ='Step 3. Costs'!I64 -> No Selection | E123: ='Step 3. Costs'!K64 -> 0 | F123: ='Step 3. Costs'!O64 -> mins | L123: No Selection | M123: 0 | N123: mins
B124: Personnel 5 | D124: ='Step 3. Costs'!I65 -> No Selection | E124: ='Step 3. Costs'!K65 -> 0 | F124: ='Step 3. Costs'!O65 -> mins | L124: No Selection | M124: 0 | N124: mins
B125: Personnel 6 | D125: ='Step 3. Costs'!I66 -> No Selection | E125: ='Step 3. Costs'!K66 -> 0 | F125: ='Step 3. Costs'!O66 -> mins | L125: No Selection | M125: 0 | N125: mins
B126: Personnel 7 | D126: ='Step 3. Costs'!I67 -> No Selection | E126: ='Step 3. Costs'!K67 -> 0 | F126: ='Step 3. Costs'!O67 -> mins | L126: No Selection | M126: 0 | N126: mins
B127: Personnel 8 | D127: ='Step 3. Costs'!I68 -> No Selection | E127: ='Step 3. Costs'!K68 -> 0 | F127: ='Step 3. Costs'!O68 -> mins | L127: No Selection | M127: 0 | N127: mins
B128: Personnel 9 | D128: ='Step 3. Costs'!I69 -> No Selection | E128: ='Step 3. Costs'!K69 -> 0 | F128: ='Step 3. Costs'!O69 -> mins | L128: No Selection | M128: 0 | N128: mins
B129: Personnel 10 | D129: ='Step 3. Costs'!I70 -> No Selection | E129: ='Step 3. Costs'!K70 -> 0 | F129: ='Step 3. Costs'!O70 -> mins | L129: No Selection | M129: 0 | N129: mins
B130: Personnel 11 | D130: ='Step 3. Costs'!I71 -> No Selection | E130: ='Step 3. Costs'!K71 -> 0 | F130: ='Step 3. Costs'!O71 -> mins | L130: No Selection | M130: 0 | N130: mins
B131: Personnel 12 | D131: ='Step 3. Costs'!I72 -> No Selection | E131: ='Step 3. Costs'!K72 -> 0 | F131: ='Step 3. Costs'!O72 -> mins | L131: No Selection | M131: 0 | N131: mins
B132: Personnel 13 | D132: ='Step 3. Costs'!I73 -> No Selection | E132: ='Step 3. Costs'!K73 -> 0 | F132: ='Step 3. Costs'!O73 -> mins | L132: No Selection | M132: 0 | N132: mins
B133: Personnel 14 | D133: ='Step 3. Costs'!I74 -> No Selection | E133: ='Step 3. Costs'!K74 -> 0 | F133: ='Step 3. Costs'!O74 -> mins | L133: No Selection | M133: 0 | N133: mins
B134: Personnel 15 | D134: ='Step 3. Costs'!I75 -> No Selection | E134: ='Step 3. Costs'!K75 -> 0 | F134: ='Step 3. Costs'!O75 -> mins | L134: No Selection | M134: 0 | N134: mins
A135: 5 | B135: Vaccine reconciliation | C135: ='Step 3. Costs'!G77 -> Per year | H135: ='Step 3. Costs'!U77 -> 0 | K135: Per year | P135: 0 | Q135: placeholder
B136: Personnel 1 | D136: ='Step 3. Costs'!I77 -> Administrative Support | E136: ='Step 3. Costs'!K77 -> 12 | F136: ='Step 3. Costs'!O77 -> hours | L136: =IF('Variables and Defaults'!D8='Variables and Defaults'!F8,'Variables and Defaults'!F8,'Variables and Defaults'!D8) -> Administrative Support | M136: 12 | N136: hours
B137: Personnel 2 | D137: ='Step 3. Costs'!I78 -> No Selection | E137: ='Step 3. Costs'!K78 -> 0 | F137: ='Step 3. Costs'!O78 -> mins | L137: No Selection | M137: 0 | N137: mins
B138: Personnel 3 | D138: ='Step 3. Costs'!I79 -> No Selection | E138: ='Step 3. Costs'!K79 -> 0 | F138: ='Step 3. Costs'!O79 -> mins | L138: No Selection | M138: 0 | N138: mins
B139: Personnel 4 | D139: ='Step 3. Costs'!I80 -> No Selection | E139: ='Step 3. Costs'!K80 -> 0 | F139: ='Step 3. Costs'!O80 -> mins | L139: No Selection | M139: 0 | N139: mins
B140: Personnel 5 | D140: ='Step 3. Costs'!I81 -> No Selection | E140: ='Step 3. Costs'!K81 -> 0 | F140: ='Step 3. Costs'!O81 -> mins | L140: No Selection | M140: 0 | N140: mins
B141: Personnel 6 | D141: ='Step 3. Costs'!I82 -> No Selection | E141: ='Step 3. Costs'!K82 -> 0 | F141: ='Step 3. Costs'!O82 -> mins | L141: No Selection | M141: 0 | N141: mins
B142: Personnel 7 | D142: ='Step 3. Costs'!I83 -> No Selection | E142: ='Step 3. Costs'!K83 -> 0 | F142: ='Step 3. Costs'!O83 -> mins | L142: No Selection | M142: 0 | N142: mins
B143: Personnel 8 | D143: ='Step 3. Costs'!I84 -> No Selection | E143: ='Step 3. Costs'!K84 -> 0 | F143: ='Step 3. Costs'!O84 -> mins | L143: No Selection | M143: 0 | N143: mins
B144: Personnel 9 | D144: ='Step 3. Costs'!I85 -> No Selection | E144: ='Step 3. Costs'!K85 -> 0 | F144: ='Step 3. Costs'!O85 -> mins | L144: No Selection | M144: 0 | N144: mins
B145: Personnel 10 | D145: ='Step 3. Costs'!I86 -> No Selection | E145: ='Step 3. Costs'!K86 -> 0 | F145: ='Step 3. Costs'!O86 -> mins | L145: No Selection | M145: 0 | N145: mins
B146: Personnel 11 | D146: ='Step 3. Costs'!I87 -> No Selection | E146: ='Step 3. Costs'!K87 -> 0 | F146: ='Step 3. Costs'!O87 -> mins | L146: No Selection | M146: 0 | N146: mins
B147: Personnel 12 | D147: ='Step 3. Costs'!I88 -> No Selection | E147: ='Step 3. Costs'!K88 -> 0 | F147: ='Step 3. Costs'!O88 -> mins | L147: No Selection | M147: 0 | N147: mins
B148: Personnel 13 | D148: ='Step 3. Costs'!I89 -> No Selection | E148: ='Step 3. Costs'!K89 -> 0 | F148: ='Step 3. Costs'!O89 -> mins | L148: No Selection | M148: 0 | N148: mins
B149: Personnel 14 | D149: ='Step 3. Costs'!I90 -> No Selection | E149: ='Step 3. Costs'!K90 -> 0 | F149: ='Step 3. Costs'!O90 -> mins | L149: No Selection | M149: 0 | N149: mins
B150: Personnel 15 | D150: ='Step 3. Costs'!I91 -> No Selection | E150: ='Step 3. Costs'!K91 -> 0 | F150: ='Step 3. Costs'!O91 -> mins | L150: No Selection | M150: 0 | N150: mins
A151: 6 | B151: Emergency | C151: ='Step 3. Costs'!G93 -> Per year | H151: ='Step 3. Costs'!U93 -> 1000 | K151: Per year | P151: 1000 | Q151: placeholder
B152: Personnel 1 | D152: ='Step 3. Costs'!I93 -> Administrative Support | E152: ='Step 3. Costs'!K93 -> 5 | F152: ='Step 3. Costs'!O93 -> days | L152: =IF('Variables and Defaults'!D8='Variables and Defaults'!F8,'Variables and Defaults'!F8,'Variables and Defaults'!D8) -> Administrative Support | M152: 5 | N152: days
B153: Personnel 2 | D153: ='Step 3. Costs'!I94 -> No Selection | E153: ='Step 3. Costs'!K94 -> 0 | F153: ='Step 3. Costs'!O94 -> mins | L153: No Selection | M153: 0 | N153: mins
B154: Personnel 3 | D154: ='Step 3. Costs'!I95 -> No Selection | E154: ='Step 3. Costs'!K95 -> 0 | F154: ='Step 3. Costs'!O95 -> mins | L154: No Selection | M154: 0 | N154: mins
B155: Personnel 4 | D155: ='Step 3. Costs'!I96 -> No Selection | E155: ='Step 3. Costs'!K96 -> 0 | F155: ='Step 3. Costs'!O96 -> mins | L155: No Selection | M155: 0 | N155: mins
B156: Personnel 5 | D156: ='Step 3. Costs'!I97 -> No Selection | E156: ='Step 3. Costs'!K97 -> 0 | F156: ='Step 3. Costs'!O97 -> mins | L156: No Selection | M156: 0 | N156: mins
B157: Personnel 6 | D157: ='Step 3. Costs'!I98 -> No Selection | E157: ='Step 3. Costs'!K98 -> 0 | F157: ='Step 3. Costs'!O98 -> mins | L157: No Selection | M157: 0 | N157: mins
B158: Personnel 7 | D158: ='Step 3. Costs'!I99 -> No Selection | E158: ='Step 3. Costs'!K99 -> 0 | F158: ='Step 3. Costs'!O99 -> mins | L158: No Selection | M158: 0 | N158: mins
B159: Personnel 8 | D159: ='Step 3. Costs'!I100 -> No Selection | E159: ='Step 3. Costs'!K100 -> 0 | F159: ='Step 3. Costs'!O100 -> mins | L159: No Selection | M159: 0 | N159: mins
B160: Personnel 9 | D160: ='Step 3. Costs'!I101 -> No Selection | E160: ='Step 3. Costs'!K101 -> 0 | F160: ='Step 3. Costs'!O101 -> mins | L160: No Selection | M160: 0 | N160: mins
B161: Personnel 10 | D161: ='Step 3. Costs'!I102 -> No Selection | E161: ='Step 3. Costs'!K102 -> 0 | F161: ='Step 3. Costs'!O102 -> mins | L161: No Selection | M161: 0 | N161: mins
B162: Personnel 11 | D162: ='Step 3. Costs'!I103 -> No Selection | E162: ='Step 3. Costs'!K103 -> 0 | F162: ='Step 3. Costs'!O103 -> mins | L162: No Selection | M162: 0 | N162: mins
B163: Personnel 12 | D163: ='Step 3. Costs'!I104 -> No Selection | E163: ='Step 3. Costs'!K104 -> 0 | F163: ='Step 3. Costs'!O104 -> mins | L163: No Selection | M163: 0 | N163: mins
B164: Personnel 13 | D164: ='Step 3. Costs'!I105 -> No Selection | E164: ='Step 3. Costs'!K105 -> 0 | F164: ='Step 3. Costs'!O105 -> mins | L164: No Selection | M164: 0 | N164: mins
B165: Personnel 14 | D165: ='Step 3. Costs'!I106 -> No Selection | E165: ='Step 3. Costs'!K106 -> 0 | F165: ='Step 3. Costs'!O106 -> mins | L165: No Selection | M165: 0 | N165: mins
B166: Personnel 15 | D166: ='Step 3. Costs'!I107 -> No Selection | E166: ='Step 3. Costs'!K107 -> 0 | F166: ='Step 3. Costs'!O107 -> mins | L166: No Selection | M166: 0 | N166: mins
B168: Administering the Vaccine
A169: 1 | B169: Registration | C169: ='Step 3. Costs'!G114 -> Per vaccine visit | H169: ='Step 3. Costs'!U114 -> 0 | K169: Per vaccine visit | P169: 0
B170: Personnel 1 | D170: ='Step 3. Costs'!I114 -> Public Health Nurse I | E170: ='Step 3. Costs'!K114 -> 2 | F170: ='Step 3. Costs'!O114 -> mins | L170: =IF('Variables and Defaults'!D9=0,'Variables and Defaults'!D8,IF('Variables and Defaults'!D9='Variables and Defaults'!F9,'Variables and Defaults'!F9,'Variables and Defaults'!D9)) -> Public Health Nurse I | M170: 2 | N170: mins | R170: placeholder
B171: Personnel 2 | D171: ='Step 3. Costs'!I115 -> No Selection | E171: ='Step 3. Costs'!K115 -> 0 | F171: ='Step 3. Costs'!O115 -> mins | L171: No Selection | M171: 0 | N171: mins
B172: Personnel 3 | D172: ='Step 3. Costs'!I116 -> No Selection | E172: ='Step 3. Costs'!K116 -> 0 | F172: ='Step 3. Costs'!O116 -> mins | L172: No Selection | M172: 0 | N172: mins
B173: Personnel 4 | D173: ='Step 3. Costs'!I117 -> No Selection | E173: ='Step 3. Costs'!K117 -> 0 | F173: ='Step 3. Costs'!O117 -> mins | L173: No Selection | M173: 0 | N173: mins
B174: Personnel 5 | D174: ='Step 3. Costs'!I118 -> No Selection | E174: ='Step 3. Costs'!K118 -> 0 | F174: ='Step 3. Costs'!O118 -> mins | L174: No Selection | M174: 0 | N174: mins
B175: Personnel 6 | D175: ='Step 3. Costs'!I119 -> No Selection | E175: ='Step 3. Costs'!K119 -> 0 | F175: ='Step 3. Costs'!O119 -> mins | L175: No Selection | M175: 0 | N175: mins
B176: Personnel 7 | D176: ='Step 3. Costs'!I120 -> No Selection | E176: ='Step 3. Costs'!K120 -> 0 | F176: ='Step 3. Costs'!O120 -> mins | L176: No Selection | M176: 0 | N176: mins
B177: Personnel 8 | D177: ='Step 3. Costs'!I121 -> No Selection | E177: ='Step 3. Costs'!K121 -> 0 | F177: ='Step 3. Costs'!O121 -> mins | L177: No Selection | M177: 0 | N177: mins
B178: Personnel 9 | D178: ='Step 3. Costs'!I122 -> No Selection | E178: ='Step 3. Costs'!K122 -> 0 | F178: ='Step 3. Costs'!O122 -> mins | L178: No Selection | M178: 0 | N178: mins
B179: Personnel 10 | D179: ='Step 3. Costs'!I123 -> No Selection | E179: ='Step 3. Costs'!K123 -> 0 | F179: ='Step 3. Costs'!O123 -> mins | L179: No Selection | M179: 0 | N179: mins
B180: Personnel 11 | D180: ='Step 3. Costs'!I124 -> No Selection | E180: ='Step 3. Costs'!K124 -> 0 | F180: ='Step 3. Costs'!O124 -> mins | L180: No Selection | M180: 0 | N180: mins
B181: Personnel 12 | D181: ='Step 3. Costs'!I125 -> No Selection | E181: ='Step 3. Costs'!K125 -> 0 | F181: ='Step 3. Costs'!O125 -> mins | L181: No Selection | M181: 0 | N181: mins
B182: Personnel 13 | D182: ='Step 3. Costs'!I126 -> No Selection | E182: ='Step 3. Costs'!K126 -> 0 | F182: ='Step 3. Costs'!O126 -> mins | L182: No Selection | M182: 0 | N182: mins
B183: Personnel 14 | D183: ='Step 3. Costs'!I127 -> No Selection | E183: ='Step 3. Costs'!K127 -> 0 | F183: ='Step 3. Costs'!O127 -> mins | L183: No Selection | M183: 0 | N183: mins
B184: Personnel 15 | D184: ='Step 3. Costs'!I128 -> No Selection | E184: ='Step 3. Costs'!K128 -> 0 | F184: ='Step 3. Costs'!O128 -> mins | L184: No Selection | M184: 0 | N184: mins
A185: 2 | B185: Assessment/Discussion of shots due
B186: First dose | C186: ='Step 3. Costs'!G132 -> Per vaccine visit | H186: ='Step 3. Costs'!S132 -> 0 | K186: Per vaccine visit | P186: 0 | R186: placeholder
B187: Personnel 1 | D187: ='Step 3. Costs'!I132 -> Public Health Nurse I | E187: ='Step 3. Costs'!K132 -> 2 | F187: ='Step 3. Costs'!O132 -> mins | L187: =IF('Variables and Defaults'!D9=0,'Variables and Defaults'!D8,IF('Variables and Defaults'!D9='Variables and Defaults'!F9,'Variables and Defaults'!F9,'Variables and Defaults'!D9)) -> Public Health Nurse I | M187: 2 | N187: mins
B188: Personnel 2 | D188: ='Step 3. Costs'!I133 -> No Selection | E188: ='Step 3. Costs'!K133 -> 0 | F188: ='Step 3. Costs'!O133 -> mins | L188: No Selection | M188: 0 | N188: mins
B189: Personnel 3 | D189: ='Step 3. Costs'!I134 -> No Selection | E189: ='Step 3. Costs'!K134 -> 0 | F189: ='Step 3. Costs'!O134 -> mins | L189: No Selection | M189: 0 | N189: mins
B190: Personnel 4 | D190: ='Step 3. Costs'!I135 -> No Selection | E190: ='Step 3. Costs'!K135 -> 0 | F190: ='Step 3. Costs'!O135 -> mins | L190: No Selection | M190: 0 | N190: mins
B191: Personnel 5 | D191: ='Step 3. Costs'!I136 -> No Selection | E191: ='Step 3. Costs'!K136 -> 0 | F191: ='Step 3. Costs'!O136 -> mins | L191: No Selection | M191: 0 | N191: mins
B192: Personnel 6 | D192: ='Step 3. Costs'!I137 -> No Selection | E192: ='Step 3. Costs'!K137 -> 0 | F192: ='Step 3. Costs'!O137 -> mins | L192: No Selection | M192: 0 | N192: mins
B193: Personnel 7 | D193: ='Step 3. Costs'!I138 -> No Selection | E193: ='Step 3. Costs'!K138 -> 0 | F193: ='Step 3. Costs'!O138 -> mins | L193: No Selection | M193: 0 | N193: mins
B194: Personnel 8 | D194: ='Step 3. Costs'!I139 -> No Selection | E194: ='Step 3. Costs'!K139 -> 0 | F194: ='Step 3. Costs'!O139 -> mins | L194: No Selection | M194: 0 | N194: mins
B195: Personnel 9 | D195: ='Step 3. Costs'!I140 -> No Selection | E195: ='Step 3. Costs'!K140 -> 0 | F195: ='Step 3. Costs'!O140 -> mins | L195: No Selection | M195: 0 | N195: mins
B196: Personnel 10 | D196: ='Step 3. Costs'!I141 -> No Selection | E196: ='Step 3. Costs'!K141 -> 0 | F196: ='Step 3. Costs'!O141 -> mins | L196: No Selection | M196: 0 | N196: mins
B197: Personnel 11 | D197: ='Step 3. Costs'!I142 -> No Selection | E197: ='Step 3. Costs'!K142 -> 0 | F197: ='Step 3. Costs'!O142 -> mins | L197: No Selection | M197: 0 | N197: mins
B198: Personnel 12 | D198: ='Step 3. Costs'!I143 -> No Selection | E198: ='Step 3. Costs'!K143 -> 0 | F198: ='Step 3. Costs'!O143 -> mins | L198: No Selection | M198: 0 | N198: mins
B199: Personnel 13 | D199: ='Step 3. Costs'!I144 -> No Selection | E199: ='Step 3. Costs'!K144 -> 0 | F199: ='Step 3. Costs'!O144 -> mins | L199: No Selection | M199: 0 | N199: mins
B200: Personnel 14 | D200: ='Step 3. Costs'!I145 -> No Selection | E200: ='Step 3. Costs'!K145 -> 0 | F200: ='Step 3. Costs'!O145 -> mins | L200: No Selection | M200: 0 | N200: mins
B201: Personnel 15 | D201: ='Step 3. Costs'!I146 -> No Selection | E201: ='Step 3. Costs'!K146 -> 0 | F201: ='Step 3. Costs'!O146 -> mins | L201: No Selection | M201: 0 | N201: mins
B202: Subsequent doses | H202: ='Step 3. Costs'!U132 -> 0 | P202: 0 | R202: placeholder
B203: Personnel 1 | E203: ='Step 3. Costs'!M132 -> 0.5 | M203: 0.5
B204: Personnel 2 | E204: ='Step 3. Costs'!M133 -> 0 | M204: 0
B205: Personnel 3 | E205: ='Step 3. Costs'!M134 -> 0 | M205: 0
B206: Personnel 4 | E206: ='Step 3. Costs'!M135 -> 0 | M206: 0
B207: Personnel 5 | E207: ='Step 3. Costs'!M136 -> 0 | M207: 0
B208: Personnel 6 | E208: ='Step 3. Costs'!M137 -> 0 | M208: 0
B209: Personnel 7 | E209: ='Step 3. Costs'!M138 -> 0 | M209: 0
B210: Personnel 8 | E210: ='Step 3. Costs'!M139 -> 0 | M210: 0
B211: Personnel 9 | E211: ='Step 3. Costs'!M140 -> 0 | M211: 0
B212: Personnel 10 | E212: ='Step 3. Costs'!M141 -> 0 | M212: 0
B213: Personnel 11 | E213: ='Step 3. Costs'!M142 -> 0 | M213: 0
... 327 more rows

Sheet Calculations
A2: Note to the users: this sheet stores the calculations for the tool. The sheet should not be modified by the users and therefore is locked.
A5: Result Summary
B7: Total Cost | C7: =AH36 -> 14348.70583
B8: Total first dose related | C8: =AH37 -> 1889.225
B9: Total subsequent dose related | C9: =AH38 -> 628.0625
B10: Average cost per first vaccine | C10: =((C7-C8-C9)/C17)+C8/C20 -> 15.60986833
B11: Average cost per subsequent vaccine | C11: =((C7-C8-C9)/C17)+C9/C21 -> 13.08754333
A13: Calculations
B15: Vaccine Records | F15: Staff and Salary
B16: Annual Number of Vaccine Orders | C16: ='Variables and Defaults'!D64 -> 12 | H16: Hourly Rate | J16: Fringe | K16: Resulting Salary
B17: Annual Vaccine Administered | C17: ='Variables and Defaults'!D63 -> 1000 | F17: ='Step 1. Staff Category'!D17 -> Administrative Support | H17: ='Variables and Defaults'!D25 -> 19.17 | J17: ='Variables and Defaults'!D42 -> 0.3 | K17: =(1+J17)*H17 -> 24.921
B18: Annual Vaccine Visit | C18: ='Variables and Defaults'!D62 -> 500 | F18: ='Step 1. Staff Category'!D18 -> Public Health Nurse I | H18: ='Variables and Defaults'!D26 -> 25.87 | J18: ='Variables and Defaults'!D43 -> 0.3 | K18: =(1+J18)*H18 -> 33.631
F19: ='Step 1. Staff Category'!D19 -> 0 | H19: ='Variables and Defaults'!D27 -> 0 | J19: ='Variables and Defaults'!D44 -> 0 | K19: 0
B20: Number of first doses | C20: =C18 -> 500 | F20: ='Step 1. Staff Category'!D20 -> 0 | H20: ='Variables and Defaults'!D28 -> 0 | J20: ='Variables and Defaults'!D45 -> 0 | K20: 0
B21: Number of subsequent doses | C21: =C17-C20 -> 500 | F21: ='Step 1. Staff Category'!D21 -> 0 | H21: ='Variables and Defaults'!D29 -> 0 | J21: ='Variables and Defaults'!D46 -> 0 | K21: 0
F22: ='Step 1. Staff Category'!D22 -> 0 | H22: ='Variables and Defaults'!D30 -> 0 | J22: ='Variables and Defaults'!D47 -> 0 | K22: 0
F23: ='Step 1. Staff Category'!D23 -> 0 | H23: ='Variables and Defaults'!D31 -> 0 | J23: ='Variables and Defaults'!D48 -> 0 | K23: 0
F24: ='Step 1. Staff Category'!D24 -> 0 | H24: ='Variables and Defaults'!D32 -> 0 | J24: ='Variables and Defaults'!D49 -> 0 | K24: 0
F25: ='Step 1. Staff Category'!D25 -> 0 | H25: ='Variables and Defaults'!D33 -> 0 | J25: ='Variables and Defaults'!D50 -> 0 | K25: 0
F26: ='Step 1. Staff Category'!D26 -> 0 | H26: ='Variables and Defaults'!D34 -> 0 | J26: ='Variables and Defaults'!D51 -> 0 | K26: 0
F27: ='Step 1. Staff Category'!D27 -> 0 | H27: ='Variables and Defaults'!D35 -> 0 | J27: ='Variables and Defaults'!D52 -> 0 | K27: =(1+J27)*H27 -> 0
F28: ='Step 1. Staff Category'!D28 -> 0 | H28: ='Variables and Defaults'!D36 -> 0 | J28: ='Variables and Defaults'!D53 -> 0 | K28: 0
F29: ='Step 1. Staff Category'!D29 -> 0 | H29: ='Variables and Defaults'!D37 -> 0 | J29: ='Variables and Defaults'!D54 -> 0 | K29: 0
F30: ='Step 1. Staff Category'!D30 -> 0 | H30: ='Variables and Defaults'!D38 -> 0 | J30: ='Variables and Defaults'!D55 -> 0 | K30: 0
F31: ='Step 1. Staff Category'!D31 -> 0 | H31: ='Variables and Defaults'!D39 -> 0 | J31: ='Variables and Defaults'!D56 -> 0 | K31: 0
F34: Personnel Type & Time Used | J34: Wage and Fringe | S34: Personnel Cost | Z34: Non-Personnel Cost | AC34: Subtotal (Annual)
B35: Cost Category/Items | C35: Cost Frequency (1 = per order, 2 = per month, 3 = per year, 4 = per vaccine visit) | D35: # of personnel | F35: Personnel | G35: Time used | H35: Time unit (1=min; 2= hr.; 3=day) | J35: Hourly Wage | K35: % Fringe | M35: Wage per min | N35: Wage per day | P35: Unit Wage | Q35: Unit Fringe | S35: Resulting Unit Cost | T35: Annual cost (if frequency = per order) | U35: Annual cost (if frequency = per month) | V35: Annual cost (if frequency = per year) | W35: Annual cost (if frequency = per vaccine visit) | X35: Resulting Annual Cost | Z35: Unit Cost | AA35: Annual Cost | AE35: Results Summary
B36: Vaccine Management | AE36: Total (Annual) | AH36: =SUM(AC36:AC512) -> 14348.70583
A37: 1 | B37: Order vaccines | C37: =MATCH('Variables and Defaults'!C71,Mechanics!$G$9:$G$12,0) -> 1 | D37: =Cost_1 -> 1 | T37: =SUM(S38:S52)*$C$16 -> 149.526 | U37: =SUM(S38:S52)*12 -> 149.526 | V37: =SUM(S38:S52) -> 12.4605 | W37: =SUM(S38:S52)*$C$18 -> 6230.25 | X37: =CHOOSE(C37,T37,U37,V37,W37) -> 149.526 | Z37: ='Variables and Defaults'!H71 -> 0 | AA37: =CHOOSE(C37,Z37*$C$16,Z37*12,Z37,Z37*$C$18) -> 0 | AC37: =X37+AA37 -> 149.526 | AE37: Total First Dose Related | AH37: =SUM(AC152,AC201,AC234,AC299) -> 1889.225
B38: Personnel 1 | F38: =MATCH('Variables and Defaults'!D72,Mechanics!$B$9:$B$24,0) -> 1 | G38: ='Variables and Defaults'!E72 -> 30 | H38: =MATCH('Variables and Defaults'!F72,Mechanics!$L$9:$L$11,0) -> 1 | J38: =IFERROR(INDEX('Variables and Defaults'!$D$25:$D$34,Calculations!F38),0) -> 19.17 | K38: =IFERROR(INDEX('Variables and Defaults'!$D$42:$D$51,Calculations!F38),0) -> 0.3 | M38: =J38/60 -> 0.3195 | N38: =J38*8 -> 153.36 | P38: =CHOOSE(H38,M38,J38,N38) -> 0.3195 | Q38: =P38*K38 -> 0.09585 | S38: =G38*(P38+Q38) -> 12.4605 | AE38: Total Subsequent Dose Related | AH38: =SUM(AC168,AC217,AC250,AC315) -> 628.0625
B39: Personnel 2 | F39: =MATCH('Variables and Defaults'!D73,Mechanics!$B$9:$B$24,0) -> 16 | G39: ='Variables and Defaults'!E73 -> 0 | H39: =MATCH('Variables and Defaults'!F73,Mechanics!$L$9:$L$11,0) -> 1 | J39: =IFERROR(INDEX('Variables and Defaults'!$D$25:$D$34,Calculations!F39),0) -> 0 | K39: =IFERROR(INDEX('Variables and Defaults'!$D$42:$D$51,Calculations!F39),0) -> 0 | M39: =J39/60 -> 0 | N39: =J39*8 -> 0 | P39: =CHOOSE(H39,M39,J39,N39) -> 0 | Q39: =P39*K39 -> 0 | S39: =G39*(P39+Q39) -> 0
B40: Personnel 3 | F40: =MATCH('Variables and Defaults'!D74,Mechanics!$B$9:$B$24,0) -> 16 | G40: ='Variables and Defaults'!E74 -> 0 | H40: =MATCH('Variables and Defaults'!F74,Mechanics!$L$9:$L$11,0) -> 1 | J40: =IFERROR(INDEX('Variables and Defaults'!$D$25:$D$34,Calculations!F40),0) -> 0 | K40: =IFERROR(INDEX('Variables and Defaults'!$D$42:$D$51,Calculations!F40),0) -> 0 | M40: 0 | N40: 0 | P40: 0 | Q40: 0 | S40: 0
B41: Personnel 4 | F41: =MATCH('Variables and Defaults'!D75,Mechanics!$B$9:$B$24,0) -> 16 | G41: ='Variables and Defaults'!E75 -> 0 | H41: =MATCH('Variables and Defaults'!F75,Mechanics!$L$9:$L$11,0) -> 1 | J41: =IFERROR(INDEX('Variables and Defaults'!$D$25:$D$34,Calculations!F41),0) -> 0 | K41: =IFERROR(INDEX('Variables and Defaults'!$D$42:$D$51,Calculations!F41),0) -> 0 | M41: 0 | N41: 0 | P41: 0 | Q41: 0 | S41: 0
B42: Personnel 5 | F42: =MATCH('Variables and Defaults'!D76,Mechanics!$B$9:$B$24,0) -> 16 | G42: ='Variables and Defaults'!E76 -> 0 | H42: =MATCH('Variables and Defaults'!F76,Mechanics!$L$9:$L$11,0) -> 1 | J42: =IFERROR(INDEX('Variables and Defaults'!$D$25:$D$34,Calculations!F42),0) -> 0 | K42: =IFERROR(INDEX('Variables and Defaults'!$D$42:$D$51,Calculations!F42),0) -> 0 | M42: 0 | N42: 0 | P42: 0 | Q42: 0 | S42: 0
B43: Personnel 6 | F43: =MATCH('Variables and Defaults'!D77,Mechanics!$B$9:$B$24,0) -> 16 | G43: ='Variables and Defaults'!E77 -> 0 | H43: =MATCH('Variables and Defaults'!F77,Mechanics!$L$9:$L$11,0) -> 1 | J43: =IFERROR(INDEX('Variables and Defaults'!$D$25:$D$34,Calculations!F43),0) -> 0 | K43: =IFERROR(INDEX('Variables and Defaults'!$D$42:$D$51,Calculations!F43),0) -> 0 | M43: 0 | N43: 0 | P43: 0 | Q43: 0 | S43: 0
B44: Personnel 7 | F44: =MATCH('Variables and Defaults'!D78,Mechanics!$B$9:$B$24,0) -> 16 | G44: ='Variables and Defaults'!E78 -> 0 | H44: =MATCH('Variables and Defaults'!F78,Mechanics!$L$9:$L$11,0) -> 1 | J44: =IFERROR(INDEX('Variables and Defaults'!$D$25:$D$34,Calculations!F44),0) -> 0 | K44: =IFERROR(INDEX('Variables and Defaults'!$D$42:$D$51,Calculations!F44),0) -> 0 | M44: 0 | N44: 0 | P44: 0 | Q44: 0 | S44: 0
B45: Personnel 8 | F45: =MATCH('Variables and Defaults'!D79,Mechanics!$B$9:$B$24,0) -> 16 | G45: ='Variables and Defaults'!E79 -> 0 | H45: =MATCH('Variables and Defaults'!F79,Mechanics!$L$9:$L$11,0) -> 1 | J45: =IFERROR(INDEX('Variables and Defaults'!$D$25:$D$34,Calculations!F45),0) -> 0 | K45: =IFERROR(INDEX('Variables and Defaults'!$D$42:$D$51,Calculations!F45),0) -> 0 | M45: 0 | N45: 0 | P45: 0 | Q45: 0 | S45: 0
B46: Personnel 9 | F46: =MATCH('Variables and Defaults'!D80,Mechanics!$B$9:$B$24,0) -> 16 | G46: ='Variables and Defaults'!E80 -> 0 | H46: =MATCH('Variables and Defaults'!F80,Mechanics!$L$9:$L$11,0) -> 1 | J46: =IFERROR(INDEX('Variables and Defaults'!$D$25:$D$34,Calculations!F46),0) -> 0 | K46: =IFERROR(INDEX('Variables and Defaults'!$D$42:$D$51,Calculations!F46),0) -> 0 | M46: 0 | N46: 0 | P46: 0 | Q46: 0 | S46: 0
B47: Personnel 10 | F47: =MATCH('Variables and Defaults'!D81,Mechanics!$B$9:$B$24,0) -> 16 | G47: ='Variables and Defaults'!E81 -> 0 | H47: =MATCH('Variables and Defaults'!F81,Mechanics!$L$9:$L$11,0) -> 1 | J47: =IFERROR(INDEX('Variables and Defaults'!$D$25:$D$34,Calculations!F47),0) -> 0 | K47: =IFERROR(INDEX('Variables and Defaults'!$D$42:$D$51,Calculations!F47),0) -> 0 | M47: 0 | N47: 0 | P47: 0 | Q47: 0 | S47: 0
B48: Personnel 11 | F48: =MATCH('Variables and Defaults'!D82,Mechanics!$B$9:$B$24,0) -> 16 | G48: ='Variables and Defaults'!E82 -> 0 | H48: =MATCH('Variables and Defaults'!F82,Mechanics!$L$9:$L$11,0) -> 1 | J48: =IFERROR(INDEX('Variables and Defaults'!$D$25:$D$34,Calculations!F48),0) -> 0 | K48: =IFERROR(INDEX('Variables and Defaults'!$D$42:$D$51,Calculations!F48),0) -> 0 | M48: =J48/60 -> 0 | N48: =J48*8 -> 0 | P48: =CHOOSE(H48,M48,J48,N48) -> 0 | Q48: =P48*K48 -> 0 | S48: =G48*(P48+Q48) -> 0
B49: Personnel 12 | F49: =MATCH('Variables and Defaults'!D83,Mechanics!$B$9:$B$24,0) -> 16 | G49: ='Variables and Defaults'!E83 -> 0 | H49: =MATCH('Variables and Defaults'!F83,Mechanics!$L$9:$L$11,0) -> 1 | J49: =IFERROR(INDEX('Variables and Defaults'!$D$25:$D$34,Calculations!F49),0) -> 0 | K49: =IFERROR(INDEX('Variables and Defaults'!$D$42:$D$51,Calculations!F49),0) -> 0 | M49: 0 | N49: 0 | P49: 0 | Q49: 0 | S49: 0
B50: Personnel 13 | F50: =MATCH('Variables and Defaults'!D84,Mechanics!$B$9:$B$24,0) -> 16 | G50: ='Variables and Defaults'!E84 -> 0 | H50: =MATCH('Variables and Defaults'!F84,Mechanics!$L$9:$L$11,0) -> 1 | J50: =IFERROR(INDEX('Variables and Defaults'!$D$25:$D$34,Calculations!F50),0) -> 0 | K50: =IFERROR(INDEX('Variables and Defaults'!$D$42:$D$51,Calculations!F50),0) -> 0 | M50: 0 | N50: 0 | P50: 0 | Q50: 0 | S50: 0
B51: Personnel 14 | F51: =MATCH('Variables and Defaults'!D85,Mechanics!$B$9:$B$24,0) -> 16 | G51: ='Variables and Defaults'!E85 -> 0 | H51: =MATCH('Variables and Defaults'!F85,Mechanics!$L$9:$L$11,0) -> 1 | J51: =IFERROR(INDEX('Variables and Defaults'!$D$25:$D$34,Calculations!F51),0) -> 0 | K51: =IFERROR(INDEX('Variables and Defaults'!$D$42:$D$51,Calculations!F51),0) -> 0 | M51: 0 | N51: 0 | P51: 0 | Q51: 0 | S51: 0
B52: Personnel 15 | F52: =MATCH('Variables and Defaults'!D86,Mechanics!$B$9:$B$24,0) -> 16 | G52: ='Variables and Defaults'!E86 -> 0 | H52: =MATCH('Variables and Defaults'!F86,Mechanics!$L$9:$L$11,0) -> 1 | J52: =IFERROR(INDEX('Variables and Defaults'!$D$25:$D$34,Calculations!F52),0) -> 0 | K52: =IFERROR(INDEX('Variables and Defaults'!$D$42:$D$51,Calculations!F52),0) -> 0 | M52: 0 | N52: 0 | P52: 0 | Q52: 0 | S52: 0
A53: 2 | B53: Receive vaccines | C53: =MATCH('Variables and Defaults'!C87,Mechanics!$G$9:$G$12,0) -> 1 | D53: =Cost_2 -> 1 | T53: =SUM(S54:S68)*$C$16 -> 299.052 | U53: =SUM(S54:S68)*12 -> 299.052 | V53: =SUM(S54:S68) -> 24.921 | W53: =SUM(S54:S68)*$C$18 -> 12460.5 | X53: =CHOOSE(C53,T53,U53,V53,W53) -> 299.052 | Z53: ='Variables and Defaults'!H87 -> 0 | AA53: =CHOOSE(C53,Z53*$C$16,Z53*12,Z53,Z53*$C$18) -> 0 | AC53: =X53+AA53 -> 299.052
B54: Personnel 1 | F54: =MATCH('Variables and Defaults'!D88,Mechanics!$B$9:$B$24,0) -> 1 | G54: ='Variables and Defaults'!E88 -> 1 | H54: =MATCH('Variables and Defaults'!F88,Mechanics!$L$9:$L$11,0) -> 2 | J54: =IFERROR(INDEX('Variables and Defaults'!$D$25:$D$34,Calculations!F54),0) -> 19.17 | K54: =IFERROR(INDEX('Variables and Defaults'!$D$42:$D$51,Calculations!F54),0) -> 0.3 | M54: 0.3195 | N54: 153.36 | P54: 19.17 | Q54: 5.751 | S54: 24.921
B55: Personnel 2 | F55: =MATCH('Variables and Defaults'!D89,Mechanics!$B$9:$B$24,0) -> 16 | G55: ='Variables and Defaults'!E89 -> 0 | H55: =MATCH('Variables and Defaults'!F89,Mechanics!$L$9:$L$11,0) -> 1 | J55: =IFERROR(INDEX('Variables and Defaults'!$D$25:$D$34,Calculations!F55),0) -> 0 | K55: =IFERROR(INDEX('Variables and Defaults'!$D$42:$D$51,Calculations!F55),0) -> 0 | M55: 0 | N55: 0 | P55: 0 | Q55: 0 | S55: 0
B56: Personnel 3 | F56: =MATCH('Variables and Defaults'!D90,Mechanics!$B$9:$B$24,0) -> 16 | G56: ='Variables and Defaults'!E90 -> 0 | H56: =MATCH('Variables and Defaults'!F90,Mechanics!$L$9:$L$11,0) -> 1 | J56: =IFERROR(INDEX('Variables and Defaults'!$D$25:$D$34,Calculations!F56),0) -> 0 | K56: =IFERROR(INDEX('Variables and Defaults'!$D$42:$D$51,Calculations!F56),0) -> 0 | M56: 0 | N56: 0 | P56: 0 | Q56: 0 | S56: 0
B57: Personnel 4 | F57: =MATCH('Variables and Defaults'!D91,Mechanics!$B$9:$B$24,0) -> 16 | G57: ='Variables and Defaults'!E91 -> 0 | H57: =MATCH('Variables and Defaults'!F91,Mechanics!$L$9:$L$11,0) -> 1 | J57: =IFERROR(INDEX('Variables and Defaults'!$D$25:$D$34,Calculations!F57),0) -> 0 | K57: =IFERROR(INDEX('Variables and Defaults'!$D$42:$D$51,Calculations!F57),0) -> 0 | M57: 0 | N57: 0 | P57: 0 | Q57: 0 | S57: 0
B58: Personnel 5 | F58: =MATCH('Variables and Defaults'!D92,Mechanics!$B$9:$B$24,0) -> 16 | G58: ='Variables and Defaults'!E92 -> 0 | H58: =MATCH('Variables and Defaults'!F92,Mechanics!$L$9:$L$11,0) -> 1 | J58: =IFERROR(INDEX('Variables and Defaults'!$D$25:$D$34,Calculations!F58),0) -> 0 | K58: =IFERROR(INDEX('Variables and Defaults'!$D$42:$D$51,Calculations!F58),0) -> 0 | M58: 0 | N58: 0 | P58: 0 | Q58: 0 | S58: 0
B59: Personnel 6 | F59: =MATCH('Variables and Defaults'!D93,Mechanics!$B$9:$B$24,0) -> 16 | G59: ='Variables and Defaults'!E93 -> 0 | H59: =MATCH('Variables and Defaults'!F93,Mechanics!$L$9:$L$11,0) -> 1 | J59: =IFERROR(INDEX('Variables and Defaults'!$D$25:$D$34,Calculations!F59),0) -> 0 | K59: =IFERROR(INDEX('Variables and Defaults'!$D$42:$D$51,Calculations!F59),0) -> 0 | M59: 0 | N59: 0 | P59: 0 | Q59: 0 | S59: 0
B60: Personnel 7 | F60: =MATCH('Variables and Defaults'!D94,Mechanics!$B$9:$B$24,0) -> 16 | G60: ='Variables and Defaults'!E94 -> 0 | H60: =MATCH('Variables and Defaults'!F94,Mechanics!$L$9:$L$11,0) -> 1 | J60: =IFERROR(INDEX('Variables and Defaults'!$D$25:$D$34,Calculations!F60),0) -> 0 | K60: =IFERROR(INDEX('Variables and Defaults'!$D$42:$D$51,Calculations!F60),0) -> 0 | M60: 0 | N60: 0 | P60: 0 | Q60: 0 | S60: 0
B61: Personnel 8 | F61: =MATCH('Variables and Defaults'!D95,Mechanics!$B$9:$B$24,0) -> 16 | G61: ='Variables and Defaults'!E95 -> 0 | H61: =MATCH('Variables and Defaults'!F95,Mechanics!$L$9:$L$11,0) -> 1 | J61: =IFERROR(INDEX('Variables and Defaults'!$D$25:$D$34,Calculations!F61),0) -> 0 | K61: =IFERROR(INDEX('Variables and Defaults'!$D$42:$D$51,Calculations!F61),0) -> 0 | M61: 0 | N61: 0 | P61: 0 | Q61: 0 | S61: 0
B62: Personnel 9 | F62: =MATCH('Variables and Defaults'!D96,Mechanics!$B$9:$B$24,0) -> 16 | G62: ='Variables and Defaults'!E96 -> 0 | H62: =MATCH('Variables and Defaults'!F96,Mechanics!$L$9:$L$11,0) -> 1 | J62: =IFERROR(INDEX('Variables and Defaults'!$D$25:$D$34,Calculations!F62),0) -> 0 | K62: =IFERROR(INDEX('Variables and Defaults'!$D$42:$D$51,Calculations!F62),0) -> 0 | M62: 0 | N62: 0 | P62: 0 | Q62: 0 | S62: 0
B63: Personnel 10 | F63: =MATCH('Variables and Defaults'!D97,Mechanics!$B$9:$B$24,0) -> 16 | G63: ='Variables and Defaults'!E97 -> 0 | H63: =MATCH('Variables and Defaults'!F97,Mechanics!$L$9:$L$11,0) -> 1 | J63: =IFERROR(INDEX('Variables and Defaults'!$D$25:$D$34,Calculations!F63),0) -> 0 | K63: =IFERROR(INDEX('Variables and Defaults'!$D$42:$D$51,Calculations!F63),0) -> 0 | M63: 0 | N63: 0 | P63: 0 | Q63: 0 | S63: 0
B64: Personnel 11 | F64: =MATCH('Variables and Defaults'!D98,Mechanics!$B$9:$B$24,0) -> 16 | G64: ='Variables and Defaults'!E98 -> 0 | H64: =MATCH('Variables and Defaults'!F98,Mechanics!$L$9:$L$11,0) -> 1 | J64: =IFERROR(INDEX('Variables and Defaults'!$D$25:$D$34,Calculations!F64),0) -> 0 | K64: =IFERROR(INDEX('Variables and Defaults'!$D$42:$D$51,Calculations!F64),0) -> 0 | M64: =J64/60 -> 0 | N64: =J64*8 -> 0 | P64: =CHOOSE(H64,M64,J64,N64) -> 0 | Q64: =P64*K64 -> 0 | S64: =G64*(P64+Q64) -> 0
B65: Personnel 12 | F65: =MATCH('Variables and Defaults'!D99,Mechanics!$B$9:$B$24,0) -> 16 | G65: ='Variables and Defaults'!E99 -> 0 | H65: =MATCH('Variables and Defaults'!F99,Mechanics!$L$9:$L$11,0) -> 1 | J65: =IFERROR(INDEX('Variables and Defaults'!$D$25:$D$34,Calculations!F65),0) -> 0 | K65: =IFERROR(INDEX('Variables and Defaults'!$D$42:$D$51,Calculations!F65),0) -> 0 | M65: 0 | N65: 0 | P65: 0 | Q65: 0 | S65: 0
B66: Personnel 13 | F66: =MATCH('Variables and Defaults'!D100,Mechanics!$B$9:$B$24,0) -> 16 | G66: ='Variables and Defaults'!E100 -> 0 | H66: =MATCH('Variables and Defaults'!F100,Mechanics!$L$9:$L$11,0) -> 1 | J66: =IFERROR(INDEX('Variables and Defaults'!$D$25:$D$34,Calculations!F66),0) -> 0 | K66: =IFERROR(INDEX('Variables and Defaults'!$D$42:$D$51,Calculations!F66),0) -> 0 | M66: 0 | N66: 0 | P66: 0 | Q66: 0 | S66: 0
B67: Personnel 14 | F67: =MATCH('Variables and Defaults'!D101,Mechanics!$B$9:$B$24,0) -> 16 | G67: ='Variables and Defaults'!E101 -> 0 | H67: =MATCH('Variables and Defaults'!F101,Mechanics!$L$9:$L$11,0) -> 1 | J67: =IFERROR(INDEX('Variables and Defaults'!$D$25:$D$34,Calculations!F67),0) -> 0 | K67: =IFERROR(INDEX('Variables and Defaults'!$D$42:$D$51,Calculations!F67),0) -> 0 | M67: 0 | N67: 0 | P67: 0 | Q67: 0 | S67: 0
B68: Personnel 15 | F68: =MATCH('Variables and Defaults'!D102,Mechanics!$B$9:$B$24,0) -> 16 | G68: ='Variables and Defaults'!E102 -> 0 | H68: =MATCH('Variables and Defaults'!F102,Mechanics!$L$9:$L$11,0) -> 1 | J68: =IFERROR(INDEX('Variables and Defaults'!$D$25:$D$34,Calculations!F68),0) -> 0 | K68: =IFERROR(INDEX('Variables and Defaults'!$D$42:$D$51,Calculations!F68),0) -> 0 | M68: 0 | N68: 0 | P68: 0 | Q68: 0 | S68: 0
A69: 3 | B69: Pay for vaccines (when due) / bookkeeping | C69: =MATCH('Variables and Defaults'!C103,Mechanics!$G$9:$G$12,0) -> 1 | D69: =Cost_3 -> 1 | T69: =SUM(S70:S84)*$C$16 -> 49.842 | U69: =SUM(S70:S84)*12 -> 49.842 | V69: =SUM(S70:S84) -> 4.1535 | W69: =SUM(S70:S84)*$C$18 -> 2076.75 | X69: =CHOOSE(C69,T69,U69,V69,W69) -> 49.842 | Z69: ='Variables and Defaults'!H103 -> 0 | AA69: =CHOOSE(C69,Z69*$C$16,Z69*12,Z69,Z69*$C$18) -> 0 | AC69: =X69+AA69 -> 49.842
B70: Personnel 1 | F70: =MATCH('Variables and Defaults'!D104,Mechanics!$B$9:$B$24,0) -> 1 | G70: ='Variables and Defaults'!E104 -> 10 | H70: =MATCH('Variables and Defaults'!F104,Mechanics!$L$9:$L$11,0) -> 1 | J70: =IFERROR(INDEX('Variables and Defaults'!$D$25:$D$34,Calculations!F70),0) -> 19.17 | K70: =IFERROR(INDEX('Variables and Defaults'!$D$42:$D$51,Calculations!F70),0) -> 0.3 | M70: 0.3195 | N70: 153.36 | P70: 0.3195 | Q70: 0.09585 | S70: 4.1535
B71: Personnel 2 | F71: =MATCH('Variables and Defaults'!D105,Mechanics!$B$9:$B$24,0) -> 16 | G71: ='Variables and Defaults'!E105 -> 0 | H71: =MATCH('Variables and Defaults'!F105,Mechanics!$L$9:$L$11,0) -> 1 | J71: =IFERROR(INDEX('Variables and Defaults'!$D$25:$D$34,Calculations!F71),0) -> 0 | K71: =IFERROR(INDEX('Variables and Defaults'!$D$42:$D$51,Calculations!F71),0) -> 0 | M71: 0 | N71: 0 | P71: 0 | Q71: 0 | S71: 0
B72: Personnel 3 | F72: =MATCH('Variables and Defaults'!D106,Mechanics!$B$9:$B$24,0) -> 16 | G72: ='Variables and Defaults'!E106 -> 0 | H72: =MATCH('Variables and Defaults'!F106,Mechanics!$L$9:$L$11,0) -> 1 | J72: =IFERROR(INDEX('Variables and Defaults'!$D$25:$D$34,Calculations!F72),0) -> 0 | K72: =IFERROR(INDEX('Variables and Defaults'!$D$42:$D$51,Calculations!F72),0) -> 0 | M72: 0 | N72: 0 | P72: 0 | Q72: 0 | S72: 0
B73: Personnel 4 | F73: =MATCH('Variables and Defaults'!D107,Mechanics!$B$9:$B$24,0) -> 16 | G73: ='Variables and Defaults'!E107 -> 0 | H73: =MATCH('Variables and Defaults'!F107,Mechanics!$L$9:$L$11,0) -> 1 | J73: =IFERROR(INDEX('Variables and Defaults'!$D$25:$D$34,Calculations!F73),0) -> 0 | K73: =IFERROR(INDEX('Variables and Defaults'!$D$42:$D$51,Calculations!F73),0) -> 0 | M73: 0 | N73: 0 | P73: 0 | Q73: 0 | S73: 0
B74: Personnel 5 | F74: =MATCH('Variables and Defaults'!D108,Mechanics!$B$9:$B$24,0) -> 16 | G74: ='Variables and Defaults'!E108 -> 0 | H74: =MATCH('Variables and Defaults'!F108,Mechanics!$L$9:$L$11,0) -> 1 | J74: =IFERROR(INDEX('Variables and Defaults'!$D$25:$D$34,Calculations!F74),0) -> 0 | K74: =IFERROR(INDEX('Variables and Defaults'!$D$42:$D$51,Calculations!F74),0) -> 0 | M74: 0 | N74: 0 | P74: 0 | Q74: 0 | S74: 0
B75: Personnel 6 | F75: =MATCH('Variables and Defaults'!D109,Mechanics!$B$9:$B$24,0) -> 16 | G75: ='Variables and Defaults'!E109 -> 0 | H75: =MATCH('Variables and Defaults'!F109,Mechanics!$L$9:$L$11,0) -> 1 | J75: =IFERROR(INDEX('Variables and Defaults'!$D$25:$D$34,Calculations!F75),0) -> 0 | K75: =IFERROR(INDEX('Variables and Defaults'!$D$42:$D$51,Calculations!F75),0) -> 0 | M75: 0 | N75: 0 | P75: 0 | Q75: 0 | S75: 0
B76: Personnel 7 | F76: =MATCH('Variables and Defaults'!D110,Mechanics!$B$9:$B$24,0) -> 16 | G76: ='Variables and Defaults'!E110 -> 0 | H76: =MATCH('Variables and Defaults'!F110,Mechanics!$L$9:$L$11,0) -> 1 | J76: =IFERROR(INDEX('Variables and Defaults'!$D$25:$D$34,Calculations!F76),0) -> 0 | K76: =IFERROR(INDEX('Variables and Defaults'!$D$42:$D$51,Calculations!F76),0) -> 0 | M76: 0 | N76: 0 | P76: 0 | Q76: 0 | S76: 0
B77: Personnel 8 | F77: =MATCH('Variables and Defaults'!D111,Mechanics!$B$9:$B$24,0) -> 16 | G77: ='Variables and Defaults'!E111 -> 0 | H77: =MATCH('Variables and Defaults'!F111,Mechanics!$L$9:$L$11,0) -> 1 | J77: =IFERROR(INDEX('Variables and Defaults'!$D$25:$D$34,Calculations!F77),0) -> 0 | K77: =IFERROR(INDEX('Variables and Defaults'!$D$42:$D$51,Calculations!F77),0) -> 0 | M77: 0 | N77: 0 | P77: 0 | Q77: 0 | S77: 0
B78: Personnel 9 | F78: =MATCH('Variables and Defaults'!D112,Mechanics!$B$9:$B$24,0) -> 16 | G78: ='Variables and Defaults'!E112 -> 0 | H78: =MATCH('Variables and Defaults'!F112,Mechanics!$L$9:$L$11,0) -> 1 | J78: =IFERROR(INDEX('Variables and Defaults'!$D$25:$D$34,Calculations!F78),0) -> 0 | K78: =IFERROR(INDEX('Variables and Defaults'!$D$42:$D$51,Calculations!F78),0) -> 0 | M78: 0 | N78: 0 | P78: 0 | Q78: 0 | S78: 0
B79: Personnel 10 | F79: =MATCH('Variables and Defaults'!D113,Mechanics!$B$9:$B$24,0) -> 16 | G79: ='Variables and Defaults'!E113 -> 0 | H79: =MATCH('Variables and Defaults'!F113,Mechanics!$L$9:$L$11,0) -> 1 | J79: =IFERROR(INDEX('Variables and Defaults'!$D$25:$D$34,Calculations!F79),0) -> 0 | K79: =IFERROR(INDEX('Variables and Defaults'!$D$42:$D$51,Calculations!F79),0) -> 0 | M79: 0 | N79: 0 | P79: 0 | Q79: 0 | S79: 0
B80: Personnel 11 | F80: =MATCH('Variables and Defaults'!D114,Mechanics!$B$9:$B$24,0) -> 16 | G80: ='Variables and Defaults'!E114 -> 0 | H80: =MATCH('Variables and Defaults'!F114,Mechanics!$L$9:$L$11,0) -> 1 | J80: =IFERROR(INDEX('Variables and Defaults'!$D$25:$D$34,Calculations!F80),0) -> 0 | K80: =IFERROR(INDEX('Variables and Defaults'!$D$42:$D$51,Calculations!F80),0) -> 0 | M80: =J80/60 -> 0 | N80: =J80*8 -> 0 | P80: =CHOOSE(H80,M80,J80,N80) -> 0 | Q80: =P80*K80 -> 0 | S80: =G80*(P80+Q80) -> 0
B81: Personnel 12 | F81: =MATCH('Variables and Defaults'!D115,Mechanics!$B$9:$B$24,0) -> 16 | G81: ='Variables and Defaults'!E115 -> 0 | H81: =MATCH('Variables and Defaults'!F115,Mechanics!$L$9:$L$11,0) -> 1 | J81: =IFERROR(INDEX('Variables and Defaults'!$D$25:$D$34,Calculations!F81),0) -> 0 | K81: =IFERROR(INDEX('Variables and Defaults'!$D$42:$D$51,Calculations!F81),0) -> 0 | M81: 0 | N81: 0 | P81: 0 | Q81: 0 | S81: 0
B82: Personnel 13 | F82: =MATCH('Variables and Defaults'!D116,Mechanics!$B$9:$B$24,0) -> 16 | G82: ='Variables and Defaults'!E116 -> 0 | H82: =MATCH('Variables and Defaults'!F116,Mechanics!$L$9:$L$11,0) -> 1 | J82: =IFERROR(INDEX('Variables and Defaults'!$D$25:$D$34,Calculations!F82),0) -> 0 | K82: =IFERROR(INDEX('Variables and Defaults'!$D$42:$D$51,Calculations!F82),0) -> 0 | M82: 0 | N82: 0 | P82: 0 | Q82: 0 | S82: 0
B83: Personnel 14 | F83: =MATCH('Variables and Defaults'!D117,Mechanics!$B$9:$B$24,0) -> 16 | G83: ='Variables and Defaults'!E117 -> 0 | H83: =MATCH('Variables and Defaults'!F117,Mechanics!$L$9:$L$11,0) -> 1 | J83: =IFERROR(INDEX('Variables and Defaults'!$D$25:$D$34,Calculations!F83),0) -> 0 | K83: =IFERROR(INDEX('Variables and Defaults'!$D$42:$D$51,Calculations!F83),0) -> 0 | M83: 0 | N83: 0 | P83: 0 | Q83: 0 | S83: 0
B84: Personnel 15 | F84: =MATCH('Variables and Defaults'!D118,Mechanics!$B$9:$B$24,0) -> 16 | G84: ='Variables and Defaults'!E118 -> 0 | H84: =MATCH('Variables and Defaults'!F118,Mechanics!$L$9:$L$11,0) -> 1 | J84: =IFERROR(INDEX('Variables and Defaults'!$D$25:$D$34,Calculations!F84),0) -> 0 | K84: =IFERROR(INDEX('Variables and Defaults'!$D$42:$D$51,Calculations!F84),0) -> 0 | M84: 0 | N84: 0 | P84: 0 | Q84: 0 | S84: 0
A85: 4 | B85: Storage and Handling | C85: =MATCH('Variables and Defaults'!C119,Mechanics!$G$9:$G$12,0) -> 3 | D85: =Cost_4 -> 1 | T85: =SUM(S86:S100)*$C$16 -> 3588.624 | U85: =SUM(S86:S100)*12 -> 3588.624 | V85: =SUM(S86:S100) -> 299.052 | W85: =SUM(S86:S100)*$C$18 -> 149526 | X85: =CHOOSE(C85,T85,U85,V85,W85) -> 299.052 | Z85: ='Variables and Defaults'!H119 -> 0 | AA85: =CHOOSE(C85,Z85*$C$16,Z85*12,Z85,Z85*$C$18) -> 0 | AC85: =X85+AA85 -> 299.052
B86: Personnel 1 | F86: =MATCH('Variables and Defaults'!D120,Mechanics!$B$9:$B$24,0) -> 1 | G86: ='Variables and Defaults'!E120 -> 12 | H86: =MATCH('Variables and Defaults'!F120,Mechanics!$L$9:$L$11,0) -> 2 | J86: =IFERROR(INDEX('Variables and Defaults'!$D$25:$D$34,Calculations!F86),0) -> 19.17 | K86: =IFERROR(INDEX('Variables and Defaults'!$D$42:$D$51,Calculations!F86),0) -> 0.3 | M86: 0.3195 | N86: 153.36 | P86: 19.17 | Q86: 5.751 | S86: 299.052
B87: Personnel 2 | F87: =MATCH('Variables and Defaults'!D121,Mechanics!$B$9:$B$24,0) -> 16 | G87: ='Variables and Defaults'!E121 -> 0 | H87: =MATCH('Variables and Defaults'!F121,Mechanics!$L$9:$L$11,0) -> 1 | J87: =IFERROR(INDEX('Variables and Defaults'!$D$25:$D$34,Calculations!F87),0) -> 0 | K87: =IFERROR(INDEX('Variables and Defaults'!$D$42:$D$51,Calculations!F87),0) -> 0 | M87: 0 | N87: 0 | P87: 0 | Q87: 0 | S87: 0
B88: Personnel 3 | F88: =MATCH('Variables and Defaults'!D122,Mechanics!$B$9:$B$24,0) -> 16 | G88: ='Variables and Defaults'!E122 -> 0 | H88: =MATCH('Variables and Defaults'!F122,Mechanics!$L$9:$L$11,0) -> 1 | J88: =IFERROR(INDEX('Variables and Defaults'!$D$25:$D$34,Calculations!F88),0) -> 0 | K88: =IFERROR(INDEX('Variables and Defaults'!$D$42:$D$51,Calculations!F88),0) -> 0 | M88: 0 | N88: 0 | P88: 0 | Q88: 0 | S88: 0
B89: Personnel 4 | F89: =MATCH('Variables and Defaults'!D123,Mechanics!$B$9:$B$24,0) -> 16 | G89: ='Variables and Defaults'!E123 -> 0 | H89: =MATCH('Variables and Defaults'!F123,Mechanics!$L$9:$L$11,0) -> 1 | J89: =IFERROR(INDEX('Variables and Defaults'!$D$25:$D$34,Calculations!F89),0) -> 0 | K89: =IFERROR(INDEX('Variables and Defaults'!$D$42:$D$51,Calculations!F89),0) -> 0 | M89: 0 | N89: 0 | P89: 0 | Q89: 0 | S89: 0
B90: Personnel 5 | F90: =MATCH('Variables and Defaults'!D124,Mechanics!$B$9:$B$24,0) -> 16 | G90: ='Variables and Defaults'!E124 -> 0 | H90: =MATCH('Variables and Defaults'!F124,Mechanics!$L$9:$L$11,0) -> 1 | J90: =IFERROR(INDEX('Variables and Defaults'!$D$25:$D$34,Calculations!F90),0) -> 0 | K90: =IFERROR(INDEX('Variables and Defaults'!$D$42:$D$51,Calculations!F90),0) -> 0 | M90: 0 | N90: 0 | P90: 0 | Q90: 0 | S90: 0
B91: Personnel 6 | F91: =MATCH('Variables and Defaults'!D125,Mechanics!$B$9:$B$24,0) -> 16 | G91: ='Variables and Defaults'!E125 -> 0 | H91: =MATCH('Variables and Defaults'!F125,Mechanics!$L$9:$L$11,0) -> 1 | J91: =IFERROR(INDEX('Variables and Defaults'!$D$25:$D$34,Calculations!F91),0) -> 0 | K91: =IFERROR(INDEX('Variables and Defaults'!$D$42:$D$51,Calculations!F91),0) -> 0 | M91: 0 | N91: 0 | P91: 0 | Q91: 0 | S91: 0
B92: Personnel 7 | F92: =MATCH('Variables and Defaults'!D126,Mechanics!$B$9:$B$24,0) -> 16 | G92: ='Variables and Defaults'!E126 -> 0 | H92: =MATCH('Variables and Defaults'!F126,Mechanics!$L$9:$L$11,0) -> 1 | J92: =IFERROR(INDEX('Variables and Defaults'!$D$25:$D$34,Calculations!F92),0) -> 0 | K92: =IFERROR(INDEX('Variables and Defaults'!$D$42:$D$51,Calculations!F92),0) -> 0 | M92: 0 | N92: 0 | P92: 0 | Q92: 0 | S92: 0
B93: Personnel 8 | F93: =MATCH('Variables and Defaults'!D127,Mechanics!$B$9:$B$24,0) -> 16 | G93: ='Variables and Defaults'!E127 -> 0 | H93: =MATCH('Variables and Defaults'!F127,Mechanics!$L$9:$L$11,0) -> 1 | J93: =IFERROR(INDEX('Variables and Defaults'!$D$25:$D$34,Calculations!F93),0) -> 0 | K93: =IFERROR(INDEX('Variables and Defaults'!$D$42:$D$51,Calculations!F93),0) -> 0 | M93: 0 | N93: 0 | P93: 0 | Q93: 0 | S93: 0
B94: Personnel 9 | F94: =MATCH('Variables and Defaults'!D128,Mechanics!$B$9:$B$24,0) -> 16 | G94: ='Variables and Defaults'!E128 -> 0 | H94: =MATCH('Variables and Defaults'!F128,Mechanics!$L$9:$L$11,0) -> 1 | J94: =IFERROR(INDEX('Variables and Defaults'!$D$25:$D$34,Calculations!F94),0) -> 0 | K94: =IFERROR(INDEX('Variables and Defaults'!$D$42:$D$51,Calculations!F94),0) -> 0 | M94: 0 | N94: 0 | P94: 0 | Q94: 0 | S94: 0
B95: Personnel 10 | F95: =MATCH('Variables and Defaults'!D129,Mechanics!$B$9:$B$24,0) -> 16 | G95: ='Variables and Defaults'!E129 -> 0 | H95: =MATCH('Variables and Defaults'!F129,Mechanics!$L$9:$L$11,0) -> 1 | J95: =IFERROR(INDEX('Variables and Defaults'!$D$25:$D$34,Calculations!F95),0) -> 0 | K95: =IFERROR(INDEX('Variables and Defaults'!$D$42:$D$51,Calculations!F95),0) -> 0 | M95: 0 | N95: 0 | P95: 0 | Q95: 0 | S95: 0
B96: Personnel 11 | F96: =MATCH('Variables and Defaults'!D130,Mechanics!$B$9:$B$24,0) -> 16 | G96: ='Variables and Defaults'!E130 -> 0 | H96: =MATCH('Variables and Defaults'!F130,Mechanics!$L$9:$L$11,0) -> 1 | J96: =IFERROR(INDEX('Variables and Defaults'!$D$25:$D$34,Calculations!F96),0) -> 0 | K96: =IFERROR(INDEX('Variables and Defaults'!$D$42:$D$51,Calculations!F96),0) -> 0 | M96: =J96/60 -> 0 | N96: =J96*8 -> 0 | P96: =CHOOSE(H96,M96,J96,N96) -> 0 | Q96: =P96*K96 -> 0 | S96: =G96*(P96+Q96) -> 0
B97: Personnel 12 | F97: =MATCH('Variables and Defaults'!D131,Mechanics!$B$9:$B$24,0) -> 16 | G97: ='Variables and Defaults'!E131 -> 0 | H97: =MATCH('Variables and Defaults'!F131,Mechanics!$L$9:$L$11,0) -> 1 | J97: =IFERROR(INDEX('Variables and Defaults'!$D$25:$D$34,Calculations!F97),0) -> 0 | K97: =IFERROR(INDEX('Variables and Defaults'!$D$42:$D$51,Calculations!F97),0) -> 0 | M97: 0 | N97: 0 | P97: 0 | Q97: 0 | S97: 0
B98: Personnel 13 | F98: =MATCH('Variables and Defaults'!D132,Mechanics!$B$9:$B$24,0) -> 16 | G98: ='Variables and Defaults'!E132 -> 0 | H98: =MATCH('Variables and Defaults'!F132,Mechanics!$L$9:$L$11,0) -> 1 | J98: =IFERROR(INDEX('Variables and Defaults'!$D$25:$D$34,Calculations!F98),0) -> 0 | K98: =IFERROR(INDEX('Variables and Defaults'!$D$42:$D$51,Calculations!F98),0) -> 0 | M98: 0 | N98: 0 | P98: 0 | Q98: 0 | S98: 0
B99: Personnel 14 | F99: =MATCH('Variables and Defaults'!D133,Mechanics!$B$9:$B$24,0) -> 16 | G99: ='Variables and Defaults'!E133 -> 0 | H99: =MATCH('Variables and Defaults'!F133,Mechanics!$L$9:$L$11,0) -> 1 | J99: =IFERROR(INDEX('Variables and Defaults'!$D$25:$D$34,Calculations!F99),0) -> 0 | K99: =IFERROR(INDEX('Variables and Defaults'!$D$42:$D$51,Calculations!F99),0) -> 0 | M99: 0 | N99: 0 | P99: 0 | Q99: 0 | S99: 0
B100: Personnel 15 | F100: =MATCH('Variables and Defaults'!D134,Mechanics!$B$9:$B$24,0) -> 16 | G100: ='Variables and Defaults'!E134 -> 0 | H100: =MATCH('Variables and Defaults'!F134,Mechanics!$L$9:$L$11,0) -> 1 | J100: =IFERROR(INDEX('Variables and Defaults'!$D$25:$D$34,Calculations!F100),0) -> 0 | K100: =IFERROR(INDEX('Variables and Defaults'!$D$42:$D$51,Calculations!F100),0) -> 0 | M100: 0 | N100: 0 | P100: 0 | Q100: 0 | S100: 0
A101: 5 | B101: Vaccine reconciliation | C101: =MATCH('Variables and Defaults'!C135,Mechanics!$G$9:$G$12,0) -> 3 | D101: =Cost_5 -> 1 | T101: =SUM(S102:S116)*$C$16 -> 3588.624 | U101: =SUM(S102:S116)*12 -> 3588.624 | V101: =SUM(S102:S116) -> 299.052 | W101: =SUM(S102:S116)*$C$18 -> 149526 | X101: =CHOOSE(C101,T101,U101,V101,W101) -> 299.052 | Z101: ='Variables and Defaults'!H135 -> 0 | AA101: =CHOOSE(C101,Z101*$C$16,Z101*12,Z101,Z101*$C$18) -> 0 | AC101: =X101+AA101 -> 299.052
B102: Personnel 1 | F102: =MATCH('Variables and Defaults'!D136,Mechanics!$B$9:$B$24,0) -> 1 | G102: ='Variables and Defaults'!E136 -> 12 | H102: =MATCH('Variables and Defaults'!F136,Mechanics!$L$9:$L$11,0) -> 2 | J102: =IFERROR(INDEX('Variables and Defaults'!$D$25:$D$34,Calculations!F102),0) -> 19.17 | K102: =IFERROR(INDEX('Variables and Defaults'!$D$42:$D$51,Calculations!F102),0) -> 0.3 | M102: 0.3195 | N102: 153.36 | P102: 19.17 | Q102: 5.751 | S102: 299.052
B103: Personnel 2 | F103: =MATCH('Variables and Defaults'!D137,Mechanics!$B$9:$B$24,0) -> 16 | G103: ='Variables and Defaults'!E137 -> 0 | H103: =MATCH('Variables and Defaults'!F137,Mechanics!$L$9:$L$11,0) -> 1 | J103: =IFERROR(INDEX('Variables and Defaults'!$D$25:$D$34,Calculations!F103),0) -> 0 | K103: =IFERROR(INDEX('Variables and Defaults'!$D$42:$D$51,Calculations!F103),0) -> 0 | M103: 0 | N103: 0 | P103: 0 | Q103: 0 | S103: 0
B104: Personnel 3 | F104: =MATCH('Variables and Defaults'!D138,Mechanics!$B$9:$B$24,0) -> 16 | G104: ='Variables and Defaults'!E138 -> 0 | H104: =MATCH('Variables and Defaults'!F138,Mechanics!$L$9:$L$11,0) -> 1 | J104: =IFERROR(INDEX('Variables and Defaults'!$D$25:$D$34,Calculations!F104),0) -> 0 | K104: =IFERROR(INDEX('Variables and Defaults'!$D$42:$D$51,Calculations!F104),0) -> 0 | M104: 0 | N104: 0 | P104: 0 | Q104: 0 | S104: 0
B105: Personnel 4 | F105: =MATCH('Variables and Defaults'!D139,Mechanics!$B$9:$B$24,0) -> 16 | G105: ='Variables and Defaults'!E139 -> 0 | H105: =MATCH('Variables and Defaults'!F139,Mechanics!$L$9:$L$11,0) -> 1 | J105: =IFERROR(INDEX('Variables and Defaults'!$D$25:$D$34,Calculations!F105),0) -> 0 | K105: =IFERROR(INDEX('Variables and Defaults'!$D$42:$D$51,Calculations!F105),0) -> 0 | M105: 0 | N105: 0 | P105: 0 | Q105: 0 | S105: 0
B106: Personnel 5 | F106: =MATCH('Variables and Defaults'!D140,Mechanics!$B$9:$B$24,0) -> 16 | G106: ='Variables and Defaults'!E140 -> 0 | H106: =MATCH('Variables and Defaults'!F140,Mechanics!$L$9:$L$11,0) -> 1 | J106: =IFERROR(INDEX('Variables and Defaults'!$D$25:$D$34,Calculations!F106),0) -> 0 | K106: =IFERROR(INDEX('Variables and Defaults'!$D$42:$D$51,Calculations!F106),0) -> 0 | M106: 0 | N106: 0 | P106: 0 | Q106: 0 | S106: 0
B107: Personnel 6 | F107: =MATCH('Variables and Defaults'!D141,Mechanics!$B$9:$B$24,0) -> 16 | G107: ='Variables and Defaults'!E141 -> 0 | H107: =MATCH('Variables and Defaults'!F141,Mechanics!$L$9:$L$11,0) -> 1 | J107: =IFERROR(INDEX('Variables and Defaults'!$D$25:$D$34,Calculations!F107),0) -> 0 | K107: =IFERROR(INDEX('Variables and Defaults'!$D$42:$D$51,Calculations!F107),0) -> 0 | M107: 0 | N107: 0 | P107: 0 | Q107: 0 | S107: 0
B108: Personnel 7 | F108: =MATCH('Variables and Defaults'!D142,Mechanics!$B$9:$B$24,0) -> 16 | G108: ='Variables and Defaults'!E142 -> 0 | H108: =MATCH('Variables and Defaults'!F142,Mechanics!$L$9:$L$11,0) -> 1 | J108: =IFERROR(INDEX('Variables and Defaults'!$D$25:$D$34,Calculations!F108),0) -> 0 | K108: =IFERROR(INDEX('Variables and Defaults'!$D$42:$D$51,Calculations!F108),0) -> 0 | M108: 0 | N108: 0 | P108: 0 | Q108: 0 | S108: 0
B109: Personnel 8 | F109: =MATCH('Variables and Defaults'!D143,Mechanics!$B$9:$B$24,0) -> 16 | G109: ='Variables and Defaults'!E143 -> 0 | H109: =MATCH('Variables and Defaults'!F143,Mechanics!$L$9:$L$11,0) -> 1 | J109: =IFERROR(INDEX('Variables and Defaults'!$D$25:$D$34,Calculations!F109),0) -> 0 | K109: =IFERROR(INDEX('Variables and Defaults'!$D$42:$D$51,Calculations!F109),0) -> 0 | M109: 0 | N109: 0 | P109: 0 | Q109: 0 | S109: 0
B110: Personnel 9 | F110: =MATCH('Variables and Defaults'!D144,Mechanics!$B$9:$B$24,0) -> 16 | G110: ='Variables and Defaults'!E144 -> 0 | H110: =MATCH('Variables and Defaults'!F144,Mechanics!$L$9:$L$11,0) -> 1 | J110: =IFERROR(INDEX('Variables and Defaults'!$D$25:$D$34,Calculations!F110),0) -> 0 | K110: =IFERROR(INDEX('Variables and Defaults'!$D$42:$D$51,Calculations!F110),0) -> 0 | M110: 0 | N110: 0 | P110: 0 | Q110: 0 | S110: 0
B111: Personnel 10 | F111: =MATCH('Variables and Defaults'!D145,Mechanics!$B$9:$B$24,0) -> 16 | G111: ='Variables and Defaults'!E145 -> 0 | H111: =MATCH('Variables and Defaults'!F145,Mechanics!$L$9:$L$11,0) -> 1 | J111: =IFERROR(INDEX('Variables and Defaults'!$D$25:$D$34,Calculations!F111),0) -> 0 | K111: =IFERROR(INDEX('Variables and Defaults'!$D$42:$D$51,Calculations!F111),0) -> 0 | M111: 0 | N111: 0 | P111: 0 | Q111: 0 | S111: 0
B112: Personnel 11 | F112: =MATCH('Variables and Defaults'!D146,Mechanics!$B$9:$B$24,0) -> 16 | G112: ='Variables and Defaults'!E146 -> 0 | H112: =MATCH('Variables and Defaults'!F146,Mechanics!$L$9:$L$11,0) -> 1 | J112: =IFERROR(INDEX('Variables and Defaults'!$D$25:$D$34,Calculations!F112),0) -> 0 | K112: =IFERROR(INDEX('Variables and Defaults'!$D$42:$D$51,Calculations!F112),0) -> 0 | M112: =J112/60 -> 0 | N112: =J112*8 -> 0 | P112: =CHOOSE(H112,M112,J112,N112) -> 0 | Q112: =P112*K112 -> 0 | S112: =G112*(P112+Q112) -> 0
B113: Personnel 12 | F113: =MATCH('Variables and Defaults'!D147,Mechanics!$B$9:$B$24,0) -> 16 | G113: ='Variables and Defaults'!E147 -> 0 | H113: =MATCH('Variables and Defaults'!F147,Mechanics!$L$9:$L$11,0) -> 1 | J113: =IFERROR(INDEX('Variables and Defaults'!$D$25:$D$34,Calculations!F113),0) -> 0 | K113: =IFERROR(INDEX('Variables and Defaults'!$D$42:$D$51,Calculations!F113),0) -> 0 | M113: 0 | N113: 0 | P113: 0 | Q113: 0 | S113: 0
B114: Personnel 13 | F114: =MATCH('Variables and Defaults'!D148,Mechanics!$B$9:$B$24,0) -> 16 | G114: ='Variables and Defaults'!E148 -> 0 | H114: =MATCH('Variables and Defaults'!F148,Mechanics!$L$9:$L$11,0) -> 1 | J114: =IFERROR(INDEX('Variables and Defaults'!$D$25:$D$34,Calculations!F114),0) -> 0 | K114: =IFERROR(INDEX('Variables and Defaults'!$D$42:$D$51,Calculations!F114),0) -> 0 | M114: 0 | N114: 0 | P114: 0 | Q114: 0 | S114: 0
B115: Personnel 14 | F115: =MATCH('Variables and Defaults'!D149,Mechanics!$B$9:$B$24,0) -> 16 | G115: ='Variables and Defaults'!E149 -> 0 | H115: =MATCH('Variables and Defaults'!F149,Mechanics!$L$9:$L$11,0) -> 1 | J115: =IFERROR(INDEX('Variables and Defaults'!$D$25:$D$34,Calculations!F115),0) -> 0 | K115: =IFERROR(INDEX('Variables and Defaults'!$D$42:$D$51,Calculations!F115),0) -> 0 | M115: 0 | N115: 0 | P115: 0 | Q115: 0 | S115: 0
B116: Personnel 15 | F116: =MATCH('Variables and Defaults'!D150,Mechanics!$B$9:$B$24,0) -> 16 | G116: ='Variables and Defaults'!E150 -> 0 | H116: =MATCH('Variables and Defaults'!F150,Mechanics!$L$9:$L$11,0) -> 1 | J116: =IFERROR(INDEX('Variables and Defaults'!$D$25:$D$34,Calculations!F116),0) -> 0 | K116: =IFERROR(INDEX('Variables and Defaults'!$D$42:$D$51,Calculations!F116),0) -> 0 | M116: 0 | N116: 0 | P116: 0 | Q116: 0 | S116: 0
A117: 6 | B117: Emergency | C117: =MATCH('Variables and Defaults'!C151,Mechanics!$G$9:$G$12,0) -> 3 | D117: =Cost_6 -> 1 | T117: =SUM(S118:S132)*$C$16 -> 11962.08 | U117: =SUM(S118:S132)*12 -> 11962.08 | V117: =SUM(S118:S132) -> 996.84 | W117: =SUM(S118:S132)*$C$18 -> 498420 | X117: =CHOOSE(C117,T117,U117,V117,W117) -> 996.84 | Z117: ='Variables and Defaults'!H151 -> 1000 | AA117: =CHOOSE(C117,Z117*$C$16,Z117*12,Z117,Z117*$C$18) -> 1000 | AC117: =X117+AA117 -> 1996.84
B118: Personnel 1 | F118: =MATCH('Variables and Defaults'!D152,Mechanics!$B$9:$B$24,0) -> 1 | G118: ='Variables and Defaults'!E152 -> 5 | H118: =MATCH('Variables and Defaults'!F152,Mechanics!$L$9:$L$11,0) -> 3 | J118: =IFERROR(INDEX('Variables and Defaults'!$D$25:$D$34,Calculations!F118),0) -> 19.17 | K118: =IFERROR(INDEX('Variables and Defaults'!$D$42:$D$51,Calculations!F118),0) -> 0.3 | M118: 0.3195 | N118: 153.36 | P118: 153.36 | Q118: 46.008 | S118: 996.84
B119: Personnel 2 | F119: =MATCH('Variables and Defaults'!D153,Mechanics!$B$9:$B$24,0) -> 16 | G119: ='Variables and Defaults'!E153 -> 0 | H119: =MATCH('Variables and Defaults'!F153,Mechanics!$L$9:$L$11,0) -> 1 | J119: =IFERROR(INDEX('Variables and Defaults'!$D$25:$D$34,Calculations!F119),0) -> 0 | K119: =IFERROR(INDEX('Variables and Defaults'!$D$42:$D$51,Calculations!F119),0) -> 0 | M119: 0 | N119: 0 | P119: 0 | Q119: 0 | S119: 0
B120: Personnel 3 | F120: =MATCH('Variables and Defaults'!D154,Mechanics!$B$9:$B$24,0) -> 16 | G120: ='Variables and Defaults'!E154 -> 0 | H120: =MATCH('Variables and Defaults'!F154,Mechanics!$L$9:$L$11,0) -> 1 | J120: =IFERROR(INDEX('Variables and Defaults'!$D$25:$D$34,Calculations!F120),0) -> 0 | K120: =IFERROR(INDEX('Variables and Defaults'!$D$42:$D$51,Calculations!F120),0) -> 0 | M120: 0 | N120: 0 | P120: 0 | Q120: 0 | S120: 0
B121: Personnel 4 | F121: =MATCH('Variables and Defaults'!D155,Mechanics!$B$9:$B$24,0) -> 16 | G121: ='Variables and Defaults'!E155 -> 0 | H121: =MATCH('Variables and Defaults'!F155,Mechanics!$L$9:$L$11,0) -> 1 | J121: =IFERROR(INDEX('Variables and Defaults'!$D$25:$D$34,Calculations!F121),0) -> 0 | K121: =IFERROR(INDEX('Variables and Defaults'!$D$42:$D$51,Calculations!F121),0) -> 0 | M121: 0 | N121: 0 | P121: 0 | Q121: 0 | S121: 0
B122: Personnel 5 | F122: =MATCH('Variables and Defaults'!D156,Mechanics!$B$9:$B$24,0) -> 16 | G122: ='Variables and Defaults'!E156 -> 0 | H122: =MATCH('Variables and Defaults'!F156,Mechanics!$L$9:$L$11,0) -> 1 | J122: =IFERROR(INDEX('Variables and Defaults'!$D$25:$D$34,Calculations!F122),0) -> 0 | K122: =IFERROR(INDEX('Variables and Defaults'!$D$42:$D$51,Calculations!F122),0) -> 0 | M122: 0 | N122: 0 | P122: 0 | Q122: 0 | S122: 0
B123: Personnel 6 | F123: =MATCH('Variables and Defaults'!D157,Mechanics!$B$9:$B$24,0) -> 16 | G123: ='Variables and Defaults'!E157 -> 0 | H123: =MATCH('Variables and Defaults'!F157,Mechanics!$L$9:$L$11,0) -> 1 | J123: =IFERROR(INDEX('Variables and Defaults'!$D$25:$D$34,Calculations!F123),0) -> 0 | K123: =IFERROR(INDEX('Variables and Defaults'!$D$42:$D$51,Calculations!F123),0) -> 0 | M123: 0 | N123: 0 | P123: 0 | Q123: 0 | S123: 0
B124: Personnel 7 | F124: =MATCH('Variables and Defaults'!D158,Mechanics!$B$9:$B$24,0) -> 16 | G124: ='Variables and Defaults'!E158 -> 0 | H124: =MATCH('Variables and Defaults'!F158,Mechanics!$L$9:$L$11,0) -> 1 | J124: =IFERROR(INDEX('Variables and Defaults'!$D$25:$D$34,Calculations!F124),0) -> 0 | K124: =IFERROR(INDEX('Variables and Defaults'!$D$42:$D$51,Calculations!F124),0) -> 0 | M124: 0 | N124: 0 | P124: 0 | Q124: 0 | S124: 0
B125: Personnel 8 | F125: =MATCH('Variables and Defaults'!D159,Mechanics!$B$9:$B$24,0) -> 16 | G125: ='Variables and Defaults'!E159 -> 0 | H125: =MATCH('Variables and Defaults'!F159,Mechanics!$L$9:$L$11,0) -> 1 | J125: =IFERROR(INDEX('Variables and Defaults'!$D$25:$D$34,Calculations!F125),0) -> 0 | K125: =IFERROR(INDEX('Variables and Defaults'!$D$42:$D$51,Calculations!F125),0) -> 0 | M125: 0 | N125: 0 | P125: 0 | Q125: 0 | S125: 0
B126: Personnel 9 | F126: =MATCH('Variables and Defaults'!D160,Mechanics!$B$9:$B$24,0) -> 16 | G126: ='Variables and Defaults'!E160 -> 0 | H126: =MATCH('Variables and Defaults'!F160,Mechanics!$L$9:$L$11,0) -> 1 | J126: =IFERROR(INDEX('Variables and Defaults'!$D$25:$D$34,Calculations!F126),0) -> 0 | K126: =IFERROR(INDEX('Variables and Defaults'!$D$42:$D$51,Calculations!F126),0) -> 0 | M126: 0 | N126: 0 | P126: 0 | Q126: 0 | S126: 0
B127: Personnel 10 | F127: =MATCH('Variables and Defaults'!D161,Mechanics!$B$9:$B$24,0) -> 16 | G127: ='Variables and Defaults'!E161 -> 0 | H127: =MATCH('Variables and Defaults'!F161,Mechanics!$L$9:$L$11,0) -> 1 | J127: =IFERROR(INDEX('Variables and Defaults'!$D$25:$D$34,Calculations!F127),0) -> 0 | K127: =IFERROR(INDEX('Variables and Defaults'!$D$42:$D$51,Calculations!F127),0) -> 0 | M127: 0 | N127: 0 | P127: 0 | Q127: 0 | S127: 0
B128: Personnel 11 | F128: =MATCH('Variables and Defaults'!D162,Mechanics!$B$9:$B$24,0) -> 16 | G128: ='Variables and Defaults'!E162 -> 0 | H128: =MATCH('Variables and Defaults'!F162,Mechanics!$L$9:$L$11,0) -> 1 | J128: =IFERROR(INDEX('Variables and Defaults'!$D$25:$D$34,Calculations!F128),0) -> 0 | K128: =IFERROR(INDEX('Variables and Defaults'!$D$42:$D$51,Calculations!F128),0) -> 0 | M128: =J128/60 -> 0 | N128: =J128*8 -> 0 | P128: =CHOOSE(H128,M128,J128,N128) -> 0 | Q128: =P128*K128 -> 0 | S128: =G128*(P128+Q128) -> 0
B129: Personnel 12 | F129: =MATCH('Variables and Defaults'!D163,Mechanics!$B$9:$B$24,0) -> 16 | G129: ='Variables and Defaults'!E163 -> 0 | H129: =MATCH('Variables and Defaults'!F163,Mechanics!$L$9:$L$11,0) -> 1 | J129: =IFERROR(INDEX('Variables and Defaults'!$D$25:$D$34,Calculations!F129),0) -> 0 | K129: =IFERROR(INDEX('Variables and Defaults'!$D$42:$D$51,Calculations!F129),0) -> 0 | M129: 0 | N129: 0 | P129: 0 | Q129: 0 | S129: 0
B130: Personnel 13 | F130: =MATCH('Variables and Defaults'!D164,Mechanics!$B$9:$B$24,0) -> 16 | G130: ='Variables and Defaults'!E164 -> 0 | H130: =MATCH('Variables and Defaults'!F164,Mechanics!$L$9:$L$11,0) -> 1 | J130: =IFERROR(INDEX('Variables and Defaults'!$D$25:$D$34,Calculations!F130),0) -> 0 | K130: =IFERROR(INDEX('Variables and Defaults'!$D$42:$D$51,Calculations!F130),0) -> 0 | M130: 0 | N130: 0 | P130: 0 | Q130: 0 | S130: 0
B131: Personnel 14 | F131: =MATCH('Variables and Defaults'!D165,Mechanics!$B$9:$B$24,0) -> 16 | G131: ='Variables and Defaults'!E165 -> 0 | H131: =MATCH('Variables and Defaults'!F165,Mechanics!$L$9:$L$11,0) -> 1 | J131: =IFERROR(INDEX('Variables and Defaults'!$D$25:$D$34,Calculations!F131),0) -> 0 | K131: =IFERROR(INDEX('Variables and Defaults'!$D$42:$D$51,Calculations!F131),0) -> 0 | M131: 0 | N131: 0 | P131: 0 | Q131: 0 | S131: 0
B132: Personnel 15 | F132: =MATCH('Variables and Defaults'!D166,Mechanics!$B$9:$B$24,0) -> 16 | G132: ='Variables and Defaults'!E166 -> 0 | H132: =MATCH('Variables and Defaults'!F166,Mechanics!$L$9:$L$11,0) -> 1 | J132: =IFERROR(INDEX('Variables and Defaults'!$D$25:$D$34,Calculations!F132),0) -> 0 | K132: =IFERROR(INDEX('Variables and Defaults'!$D$42:$D$51,Calculations!F132),0) -> 0 | M132: 0 | N132: 0 | P132: 0 | Q132: 0 | S132: 0
B134: Administering the Vaccines
A135: 7 | B135: Registration | C135: =MATCH('Variables and Defaults'!C169,Mechanics!$G$9:$G$12,0) -> 4 | D135: =Cost_8 -> 1 | T135: =SUM(S136:S150)*$C$16 -> 13.4524 | U135: =SUM(S136:S150)*12 -> 13.4524 | V135: =SUM(S136:S150) -> 1.121033333 | W135: =SUM(S136:S150)*$C$18 -> 560.5166667 | X135: =CHOOSE(C135,T135,U135,V135,W135) -> 560.5166667 | Z135: ='Variables and Defaults'!H169 -> 0 | AA135: =CHOOSE(C135,Z135*$C$16,Z135*12,Z135,Z135*$C$18) -> 0 | AC135: =X135+AA135 -> 560.5166667
B136: Personnel 1 | F136: =MATCH('Variables and Defaults'!D170,Mechanics!$B$9:$B$24,0) -> 2 | G136: ='Variables and Defaults'!E170 -> 2 | H136: =MATCH('Variables and Defaults'!F170,Mechanics!$L$9:$L$11,0) -> 1 | J136: =IFERROR(INDEX('Variables and Defaults'!$D$25:$D$34,Calculations!F136),0) -> 25.87 | K136: =IFERROR(INDEX('Variables and Defaults'!$D$42:$D$51,Calculations!F136),0) -> 0.3 | M136: =J136/60 -> 0.4311666667 | N136: =J136*8 -> 206.96 | P136: =CHOOSE(H136,M136,J136,N136) -> 0.4311666667 | Q136: =P136*K136 -> 0.12935 | S136: =G136*(P136+Q136) -> 1.121033333
B137: Personnel 2 | F137: =MATCH('Variables and Defaults'!D171,Mechanics!$B$9:$B$24,0) -> 16 | G137: ='Variables and Defaults'!E171 -> 0 | H137: =MATCH('Variables and Defaults'!F171,Mechanics!$L$9:$L$11,0) -> 1 | J137: =IFERROR(INDEX('Variables and Defaults'!$D$25:$D$34,Calculations!F137),0) -> 0 | K137: =IFERROR(INDEX('Variables and Defaults'!$D$42:$D$51,Calculations!F137),0) -> 0 | M137: =J137/60 -> 0 | N137: =J137*8 -> 0 | P137: =CHOOSE(H137,M137,J137,N137) -> 0 | Q137: =P137*K137 -> 0 | S137: 0
B138: Personnel 3 | F138: =MATCH('Variables and Defaults'!D172,Mechanics!$B$9:$B$24,0) -> 16 | G138: ='Variables and Defaults'!E172 -> 0 | H138: =MATCH('Variables and Defaults'!F172,Mechanics!$L$9:$L$11,0) -> 1 | J138: =IFERROR(INDEX('Variables and Defaults'!$D$25:$D$34,Calculations!F138),0) -> 0 | K138: =IFERROR(INDEX('Variables and Defaults'!$D$42:$D$51,Calculations!F138),0) -> 0 | M138: 0 | N138: 0 | P138: 0 | Q138: 0 | S138: 0
B139: Personnel 4 | F139: =MATCH('Variables and Defaults'!D173,Mechanics!$B$9:$B$24,0) -> 16 | G139: ='Variables and Defaults'!E173 -> 0 | H139: =MATCH('Variables and Defaults'!F173,Mechanics!$L$9:$L$11,0) -> 1 | J139: =IFERROR(INDEX('Variables and Defaults'!$D$25:$D$34,Calculations!F139),0) -> 0 | K139: =IFERROR(INDEX('Variables and Defaults'!$D$42:$D$51,Calculations!F139),0) -> 0 | M139: 0 | N139: 0 | P139: 0 | Q139: 0 | S139: 0
B140: Personnel 5 | F140: =MATCH('Variables and Defaults'!D174,Mechanics!$B$9:$B$24,0) -> 16 | G140: ='Variables and Defaults'!E174 -> 0 | H140: =MATCH('Variables and Defaults'!F174,Mechanics!$L$9:$L$11,0) -> 1 | J140: =IFERROR(INDEX('Variables and Defaults'!$D$25:$D$34,Calculations!F140),0) -> 0 | K140: =IFERROR(INDEX('Variables and Defaults'!$D$42:$D$51,Calculations!F140),0) -> 0 | M140: 0 | N140: 0 | P140: 0 | Q140: 0 | S140: 0
B141: Personnel 6 | F141: =MATCH('Variables and Defaults'!D175,Mechanics!$B$9:$B$24,0) -> 16 | G141: ='Variables and Defaults'!E175 -> 0 | H141: =MATCH('Variables and Defaults'!F175,Mechanics!$L$9:$L$11,0) -> 1 | J141: =IFERROR(INDEX('Variables and Defaults'!$D$25:$D$34,Calculations!F141),0) -> 0 | K141: =IFERROR(INDEX('Variables and Defaults'!$D$42:$D$51,Calculations!F141),0) -> 0 | M141: 0 | N141: 0 | P141: 0 | Q141: 0 | S141: 0
B142: Personnel 7 | F142: =MATCH('Variables and Defaults'!D176,Mechanics!$B$9:$B$24,0) -> 16 | G142: ='Variables and Defaults'!E176 -> 0 | H142: =MATCH('Variables and Defaults'!F176,Mechanics!$L$9:$L$11,0) -> 1 | J142: =IFERROR(INDEX('Variables and Defaults'!$D$25:$D$34,Calculations!F142),0) -> 0 | K142: =IFERROR(INDEX('Variables and Defaults'!$D$42:$D$51,Calculations!F142),0) -> 0 | M142: 0 | N142: 0 | P142: 0 | Q142: 0 | S142: 0
B143: Personnel 8 | F143: =MATCH('Variables and Defaults'!D177,Mechanics!$B$9:$B$24,0) -> 16 | G143: ='Variables and Defaults'!E177 -> 0 | H143: =MATCH('Variables and Defaults'!F177,Mechanics!$L$9:$L$11,0) -> 1 | J143: =IFERROR(INDEX('Variables and Defaults'!$D$25:$D$34,Calculations!F143),0) -> 0 | K143: =IFERROR(INDEX('Variables and Defaults'!$D$42:$D$51,Calculations!F143),0) -> 0 | M143: 0 | N143: 0 | P143: 0 | Q143: 0 | S143: 0
B144: Personnel 9 | F144: =MATCH('Variables and Defaults'!D178,Mechanics!$B$9:$B$24,0) -> 16 | G144: ='Variables and Defaults'!E178 -> 0 | H144: =MATCH('Variables and Defaults'!F178,Mechanics!$L$9:$L$11,0) -> 1 | J144: =IFERROR(INDEX('Variables and Defaults'!$D$25:$D$34,Calculations!F144),0) -> 0 | K144: =IFERROR(INDEX('Variables and Defaults'!$D$42:$D$51,Calculations!F144),0) -> 0 | M144: 0 | N144: 0 | P144: 0 | Q144: 0 | S144: 0
B145: Personnel 10 | F145: =MATCH('Variables and Defaults'!D179,Mechanics!$B$9:$B$24,0) -> 16 | G145: ='Variables and Defaults'!E179 -> 0 | H145: =MATCH('Variables and Defaults'!F179,Mechanics!$L$9:$L$11,0) -> 1 | J145: =IFERROR(INDEX('Variables and Defaults'!$D$25:$D$34,Calculations!F145),0) -> 0 | K145: =IFERROR(INDEX('Variables and Defaults'!$D$42:$D$51,Calculations!F145),0) -> 0 | M145: 0 | N145: 0 | P145: 0 | Q145: 0 | S145: 0
B146: Personnel 11 | F146: =MATCH('Variables and Defaults'!D180,Mechanics!$B$9:$B$24,0) -> 16 | G146: ='Variables and Defaults'!E180 -> 0 | H146: =MATCH('Variables and Defaults'!F180,Mechanics!$L$9:$L$11,0) -> 1 | J146: =IFERROR(INDEX('Variables and Defaults'!$D$25:$D$34,Calculations!F146),0) -> 0 | K146: =IFERROR(INDEX('Variables and Defaults'!$D$42:$D$51,Calculations!F146),0) -> 0 | M146: =J146/60 -> 0 | N146: =J146*8 -> 0 | P146: =CHOOSE(H146,M146,J146,N146) -> 0 | Q146: =P146*K146 -> 0 | S146: =G146*(P146+Q146) -> 0
B147: Personnel 12 | F147: =MATCH('Variables and Defaults'!D181,Mechanics!$B$9:$B$24,0) -> 16 | G147: ='Variables and Defaults'!E181 -> 0 | H147: =MATCH('Variables and Defaults'!F181,Mechanics!$L$9:$L$11,0) -> 1 | J147: =IFERROR(INDEX('Variables and Defaults'!$D$25:$D$34,Calculations!F147),0) -> 0 | K147: =IFERROR(INDEX('Variables and Defaults'!$D$42:$D$51,Calculations!F147),0) -> 0 | M147: 0 | N147: 0 | P147: 0 | Q147: 0 | S147: 0
B148: Personnel 13 | F148: =MATCH('Variables and Defaults'!D182,Mechanics!$B$9:$B$24,0) -> 16 | G148: ='Variables and Defaults'!E182 -> 0 | H148: =MATCH('Variables and Defaults'!F182,Mechanics!$L$9:$L$11,0) -> 1 | J148: =IFERROR(INDEX('Variables and Defaults'!$D$25:$D$34,Calculations!F148),0) -> 0 | K148: =IFERROR(INDEX('Variables and Defaults'!$D$42:$D$51,Calculations!F148),0) -> 0 | M148: 0 | N148: 0 | P148: 0 | Q148: 0 | S148: 0
B149: Personnel 14 | F149: =MATCH('Variables and Defaults'!D183,Mechanics!$B$9:$B$24,0) -> 16 | G149: ='Variables and Defaults'!E183 -> 0 | H149: =MATCH('Variables and Defaults'!F183,Mechanics!$L$9:$L$11,0) -> 1 | J149: =IFERROR(INDEX('Variables and Defaults'!$D$25:$D$34,Calculations!F149),0) -> 0 | K149: =IFERROR(INDEX('Variables and Defaults'!$D$42:$D$51,Calculations!F149),0) -> 0 | M149: 0 | N149: 0 | P149: 0 | Q149: 0 | S149: 0
B150: Personnel 15 | F150: =MATCH('Variables and Defaults'!D184,Mechanics!$B$9:$B$24,0) -> 16 | G150: ='Variables and Defaults'!E184 -> 0 | H150: =MATCH('Variables and Defaults'!F184,Mechanics!$L$9:$L$11,0) -> 1 | J150: =IFERROR(INDEX('Variables and Defaults'!$D$25:$D$34,Calculations!F150),0) -> 0 | K150: =IFERROR(INDEX('Variables and Defaults'!$D$42:$D$51,Calculations!F150),0) -> 0 | M150: 0 | N150: 0 | P150: 0 | Q150: 0 | S150: 0
A151: 8 | B151: Assessment/Discussion of shots due
B152: First Dose | C152: =MATCH('Variables and Defaults'!C186,Mechanics!$G$9:$G$12,0) -> 4 | D152: =Cost_9 -> 1 | T152: =SUM(S153:S167)*$C$16 -> 13.4524 | U152: =SUM(S153:S167)*12 -> 13.4524 | V152: =SUM(S153:S167) -> 1.121033333 | W152: =SUM(S153:S167)*$C$20 -> 560.5166667 | X152: =CHOOSE(C152,T152,U152,V152,W152) -> 560.5166667 | Z152: ='Variables and Defaults'!H186 -> 0 | AA152: =CHOOSE(C152,Z152*$C$16,Z152*12,Z152,Z152*$C$18) -> 0 | AC152: =X152+AA152 -> 560.5166667
B153: Personnel 1 | F153: =MATCH('Variables and Defaults'!D187,Mechanics!$B$9:$B$24,0) -> 2 | G153: ='Variables and Defaults'!E187 -> 2 | H153: =MATCH('Variables and Defaults'!F187,Mechanics!$L$9:$L$11,0) -> 1 | J153: =IFERROR(INDEX('Variables and Defaults'!$D$25:$D$34,Calculations!F153),0) -> 25.87 | K153: =IFERROR(INDEX('Variables and Defaults'!$D$42:$D$51,Calculations!F153),0) -> 0.3 | M153: =J153/60 -> 0.4311666667 | N153: =J153*8 -> 206.96 | P153: =CHOOSE(H153,M153,J153,N153) -> 0.4311666667 | Q153: =P153*K153 -> 0.12935 | S153: =G153*(P153+Q153) -> 1.121033333
B154: Personnel 2 | F154: =MATCH('Variables and Defaults'!D188,Mechanics!$B$9:$B$24,0) -> 16 | G154: ='Variables and Defaults'!E188 -> 0 | H154: =MATCH('Variables and Defaults'!F188,Mechanics!$L$9:$L$11,0) -> 1 | J154: =IFERROR(INDEX('Variables and Defaults'!$D$25:$D$34,Calculations!F154),0) -> 0 | K154: =IFERROR(INDEX('Variables and Defaults'!$D$42:$D$51,Calculations!F154),0) -> 0 | M154: 0 | N154: 0 | P154: 0 | Q154: 0 | S154: 0
B155: Personnel 3 | F155: =MATCH('Variables and Defaults'!D189,Mechanics!$B$9:$B$24,0) -> 16 | G155: ='Variables and Defaults'!E189 -> 0 | H155: =MATCH('Variables and Defaults'!F189,Mechanics!$L$9:$L$11,0) -> 1 | J155: =IFERROR(INDEX('Variables and Defaults'!$D$25:$D$34,Calculations!F155),0) -> 0 | K155: =IFERROR(INDEX('Variables and Defaults'!$D$42:$D$51,Calculations!F155),0) -> 0 | M155: 0 | N155: 0 | P155: 0 | Q155: 0 | S155: 0
B156: Personnel 4 | F156: =MATCH('Variables and Defaults'!D190,Mechanics!$B$9:$B$24,0) -> 16 | G156: ='Variables and Defaults'!E190 -> 0 | H156: =MATCH('Variables and Defaults'!F190,Mechanics!$L$9:$L$11,0) -> 1 | J156: =IFERROR(INDEX('Variables and Defaults'!$D$25:$D$34,Calculations!F156),0) -> 0 | K156: =IFERROR(INDEX('Variables and Defaults'!$D$42:$D$51,Calculations!F156),0) -> 0 | M156: 0 | N156: 0 | P156: 0 | Q156: 0 | S156: 0
B157: Personnel 5 | F157: =MATCH('Variables and Defaults'!D191,Mechanics!$B$9:$B$24,0) -> 16 | G157: ='Variables and Defaults'!E191 -> 0 | H157: =MATCH('Variables and Defaults'!F191,Mechanics!$L$9:$L$11,0) -> 1 | J157: =IFERROR(INDEX('Variables and Defaults'!$D$25:$D$34,Calculations!F157),0) -> 0 | K157: =IFERROR(INDEX('Variables and Defaults'!$D$42:$D$51,Calculations!F157),0) -> 0 | M157: 0 | N157: 0 | P157: 0 | Q157: 0 | S157: 0
B158: Personnel 6 | F158: =MATCH('Variables and Defaults'!D192,Mechanics!$B$9:$B$24,0) -> 16 | G158: ='Variables and Defaults'!E192 -> 0 | H158: =MATCH('Variables and Defaults'!F192,Mechanics!$L$9:$L$11,0) -> 1 | J158: =IFERROR(INDEX('Variables and Defaults'!$D$25:$D$34,Calculations!F158),0) -> 0 | K158: =IFERROR(INDEX('Variables and Defaults'!$D$42:$D$51,Calculations!F158),0) -> 0 | M158: 0 | N158: 0 | P158: 0 | Q158: 0 | S158: 0
B159: Personnel 7 | F159: =MATCH('Variables and Defaults'!D193,Mechanics!$B$9:$B$24,0) -> 16 | G159: ='Variables and Defaults'!E193 -> 0 | H159: =MATCH('Variables and Defaults'!F193,Mechanics!$L$9:$L$11,0) -> 1 | J159: =IFERROR(INDEX('Variables and Defaults'!$D$25:$D$34,Calculations!F159),0) -> 0 | K159: =IFERROR(INDEX('Variables and Defaults'!$D$42:$D$51,Calculations!F159),0) -> 0 | M159: 0 | N159: 0 | P159: 0 | Q159: 0 | S159: 0
B160: Personnel 8 | F160: =MATCH('Variables and Defaults'!D194,Mechanics!$B$9:$B$24,0) -> 16 | G160: ='Variables and Defaults'!E194 -> 0 | H160: =MATCH('Variables and Defaults'!F194,Mechanics!$L$9:$L$11,0) -> 1 | J160: =IFERROR(INDEX('Variables and Defaults'!$D$25:$D$34,Calculations!F160),0) -> 0 | K160: =IFERROR(INDEX('Variables and Defaults'!$D$42:$D$51,Calculations!F160),0) -> 0 | M160: 0 | N160: 0 | P160: 0 | Q160: 0 | S160: 0
B161: Personnel 9 | F161: =MATCH('Variables and Defaults'!D195,Mechanics!$B$9:$B$24,0) -> 16 | G161: ='Variables and Defaults'!E195 -> 0 | H161: =MATCH('Variables and Defaults'!F195,Mechanics!$L$9:$L$11,0) -> 1 | J161: =IFERROR(INDEX('Variables and Defaults'!$D$25:$D$34,Calculations!F161),0) -> 0 | K161: =IFERROR(INDEX('Variables and Defaults'!$D$42:$D$51,Calculations!F161),0) -> 0 | M161: 0 | N161: 0 | P161: 0 | Q161: 0 | S161: 0
B162: Personnel 10 | F162: =MATCH('Variables and Defaults'!D196,Mechanics!$B$9:$B$24,0) -> 16 | G162: ='Variables and Defaults'!E196 -> 0 | H162: =MATCH('Variables and Defaults'!F196,Mechanics!$L$9:$L$11,0) -> 1 | J162: =IFERROR(INDEX('Variables and Defaults'!$D$25:$D$34,Calculations!F162),0) -> 0 | K162: =IFERROR(INDEX('Variables and Defaults'!$D$42:$D$51,Calculations!F162),0) -> 0 | M162: 0 | N162: 0 | P162: 0 | Q162: 0 | S162: 0
B163: Personnel 11 | F163: =MATCH('Variables and Defaults'!D197,Mechanics!$B$9:$B$24,0) -> 16 | G163: ='Variables and Defaults'!E197 -> 0 | H163: =MATCH('Variables and Defaults'!F197,Mechanics!$L$9:$L$11,0) -> 1 | J163: =IFERROR(INDEX('Variables and Defaults'!$D$25:$D$34,Calculations!F163),0) -> 0 | K163: =IFERROR(INDEX('Variables and Defaults'!$D$42:$D$51,Calculations!F163),0) -> 0 | M163: =J163/60 -> 0 | N163: =J163*8 -> 0 | P163: =CHOOSE(H163,M163,J163,N163) -> 0 | Q163: =P163*K163 -> 0 | S163: =G163*(P163+Q163) -> 0
B164: Personnel 12 | F164: =MATCH('Variables and Defaults'!D198,Mechanics!$B$9:$B$24,0) -> 16 | G164: ='Variables and Defaults'!E198 -> 0 | H164: =MATCH('Variables and Defaults'!F198,Mechanics!$L$9:$L$11,0) -> 1 | J164: =IFERROR(INDEX('Variables and Defaults'!$D$25:$D$34,Calculations!F164),0) -> 0 | K164: =IFERROR(INDEX('Variables and Defaults'!$D$42:$D$51,Calculations!F164),0) -> 0 | M164: 0 | N164: 0 | P164: 0 | Q164: 0 | S164: 0
B165: Personnel 13 | F165: =MATCH('Variables and Defaults'!D199,Mechanics!$B$9:$B$24,0) -> 16 | G165: ='Variables and Defaults'!E199 -> 0 | H165: =MATCH('Variables and Defaults'!F199,Mechanics!$L$9:$L$11,0) -> 1 | J165: =IFERROR(INDEX('Variables and Defaults'!$D$25:$D$34,Calculations!F165),0) -> 0 | K165: =IFERROR(INDEX('Variables and Defaults'!$D$42:$D$51,Calculations!F165),0) -> 0 | M165: 0 | N165: 0 | P165: 0 | Q165: 0 | S165: 0
B166: Personnel 14 | F166: =MATCH('Variables and Defaults'!D200,Mechanics!$B$9:$B$24,0) -> 16 | G166: ='Variables and Defaults'!E200 -> 0 | H166: =MATCH('Variables and Defaults'!F200,Mechanics!$L$9:$L$11,0) -> 1 | J166: =IFERROR(INDEX('Variables and Defaults'!$D$25:$D$34,Calculations!F166),0) -> 0 | K166: =IFERROR(INDEX('Variables and Defaults'!$D$42:$D$51,Calculations!F166),0) -> 0 | M166: 0 | N166: 0 | P166: 0 | Q166: 0 | S166: 0
B167: Personnel 15 | F167: =MATCH('Variables and Defaults'!D201,Mechanics!$B$9:$B$24,0) -> 16 | G167: ='Variables and Defaults'!E201 -> 0 | H167: =MATCH('Variables and Defaults'!F201,Mechanics!$L$9:$L$11,0) -> 1 | J167: =IFERROR(INDEX('Variables and Defaults'!$D$25:$D$34,Calculations!F167),0) -> 0 | K167: =IFERROR(INDEX('Variables and Defaults'!$D$42:$D$51,Calculations!F167),0) -> 0 | M167: 0 | N167: 0 | P167: 0 | Q167: 0 | S167: 0
B168: Subsequent Dose | C168: =C152 -> 4 | D168: =Cost_9 -> 1 | T168: =SUM(S169:S183)*$C$16 -> 3.3631 | U168: =SUM(S169:S183)*12 -> 3.3631 | V168: =SUM(S169:S183) -> 0.2802583333 | W168: =SUM(S169:S183)*$C$21 -> 140.1291667 | X168: =CHOOSE(C168,T168,U168,V168,W168) -> 140.1291667 | Z168: ='Variables and Defaults'!H202 -> 0 | AA168: =CHOOSE(C168,Z168*$C$16,Z168*12,Z168,Z168*$C$18) -> 0 | AC168: =X168+AA168 -> 140.1291667
B169: Personnel 1 | F169: =F153 -> 2 | G169: ='Variables and Defaults'!E203 -> 0.5 | H169: =H153 -> 1 | J169: =IFERROR(INDEX('Variables and Defaults'!$D$25:$D$34,Calculations!F169),0) -> 25.87 | K169: =IFERROR(INDEX('Variables and Defaults'!$D$42:$D$51,Calculations!F169),0) -> 0.3 | M169: 0.4311666667 | N169: 206.96 | P169: 0.4311666667 | Q169: 0.12935 | S169: =G169*(P169+Q169) -> 0.2802583333
B170: Personnel 2 | F170: =F154 -> 16 | G170: ='Variables and Defaults'!E204 -> 0 | H170: 1 | J170: =IFERROR(INDEX('Variables and Defaults'!$D$25:$D$34,Calculations!F170),0) -> 0 | K170: =IFERROR(INDEX('Variables and Defaults'!$D$42:$D$51,Calculations!F170),0) -> 0 | M170: 0 | N170: 0 | P170: 0 | Q170: 0 | S170: 0
B171: Personnel 3 | F171: =F155 -> 16 | G171: ='Variables and Defaults'!E205 -> 0 | H171: 1 | J171: =IFERROR(INDEX('Variables and Defaults'!$D$25:$D$34,Calculations!F171),0) -> 0 | K171: =IFERROR(INDEX('Variables and Defaults'!$D$42:$D$51,Calculations!F171),0) -> 0 | M171: 0 | N171: 0 | P171: 0 | Q171: 0 | S171: 0
B172: Personnel 4 | F172: =F156 -> 16 | G172: ='Variables and Defaults'!E206 -> 0 | H172: 1 | J172: =IFERROR(INDEX('Variables and Defaults'!$D$25:$D$34,Calculations!F172),0) -> 0 | K172: =IFERROR(INDEX('Variables and Defaults'!$D$42:$D$51,Calculations!F172),0) -> 0 | M172: 0 | N172: 0 | P172: 0 | Q172: 0 | S172: 0
B173: Personnel 5 | F173: =F157 -> 16 | G173: ='Variables and Defaults'!E207 -> 0 | H173: 1 | J173: =IFERROR(INDEX('Variables and Defaults'!$D$25:$D$34,Calculations!F173),0) -> 0 | K173: =IFERROR(INDEX('Variables and Defaults'!$D$42:$D$51,Calculations!F173),0) -> 0 | M173: 0 | N173: 0 | P173: 0 | Q173: 0 | S173: 0
B174: Personnel 6 | F174: =F158 -> 16 | G174: ='Variables and Defaults'!E208 -> 0 | H174: 1 | J174: =IFERROR(INDEX('Variables and Defaults'!$D$25:$D$34,Calculations!F174),0) -> 0 | K174: =IFERROR(INDEX('Variables and Defaults'!$D$42:$D$51,Calculations!F174),0) -> 0 | M174: 0 | N174: 0 | P174: 0 | Q174: 0 | S174: 0
B175: Personnel 7 | F175: =F159 -> 16 | G175: ='Variables and Defaults'!E209 -> 0 | H175: 1 | J175: =IFERROR(INDEX('Variables and Defaults'!$D$25:$D$34,Calculations!F175),0) -> 0 | K175: =IFERROR(INDEX('Variables and Defaults'!$D$42:$D$51,Calculations!F175),0) -> 0 | M175: 0 | N175: 0 | P175: 0 | Q175: 0 | S175: 0
B176: Personnel 8 | F176: =F160 -> 16 | G176: ='Variables and Defaults'!E210 -> 0 | H176: 1 | J176: =IFERROR(INDEX('Variables and Defaults'!$D$25:$D$34,Calculations!F176),0) -> 0 | K176: =IFERROR(INDEX('Variables and Defaults'!$D$42:$D$51,Calculations!F176),0) -> 0 | M176: 0 | N176: 0 | P176: 0 | Q176: 0 | S176: 0
B177: Personnel 9 | F177: =F161 -> 16 | G177: ='Variables and Defaults'!E211 -> 0 | H177: 1 | J177: =IFERROR(INDEX('Variables and Defaults'!$D$25:$D$34,Calculations!F177),0) -> 0 | K177: =IFERROR(INDEX('Variables and Defaults'!$D$42:$D$51,Calculations!F177),0) -> 0 | M177: 0 | N177: 0 | P177: 0 | Q177: 0 | S177: 0
B178: Personnel 10 | F178: =F162 -> 16 | G178: ='Variables and Defaults'!E212 -> 0 | H178: 1 | J178: =IFERROR(INDEX('Variables and Defaults'!$D$25:$D$34,Calculations!F178),0) -> 0 | K178: =IFERROR(INDEX('Variables and Defaults'!$D$42:$D$51,Calculations!F178),0) -> 0 | M178: 0 | N178: 0 | P178: 0 | Q178: 0 | S178: 0
B179: Personnel 11 | F179: 16 | G179: ='Variables and Defaults'!E213 -> 0 | H179: =H163 -> 1 | J179: =IFERROR(INDEX('Variables and Defaults'!$D$25:$D$34,Calculations!F179),0) -> 0 | K179: =IFERROR(INDEX('Variables and Defaults'!$D$42:$D$51,Calculations!F179),0) -> 0 | M179: =J179/60 -> 0 | N179: =J179*8 -> 0 | P179: =CHOOSE(H179,M179,J179,N179) -> 0 | Q179: =P179*K179 -> 0 | S179: =G179*(P179+Q179) -> 0
B180: Personnel 12 | F180: 16 | G180: ='Variables and Defaults'!E214 -> 0 | H180: 1 | J180: =IFERROR(INDEX('Variables and Defaults'!$D$25:$D$34,Calculations!F180),0) -> 0 | K180: =IFERROR(INDEX('Variables and Defaults'!$D$42:$D$51,Calculations!F180),0) -> 0 | M180: 0 | N180: 0 | P180: 0 | Q180: 0 | S180: 0
B181: Personnel 13 | F181: 16 | G181: ='Variables and Defaults'!E215 -> 0 | H181: 1 | J181: =IFERROR(INDEX('Variables and Defaults'!$D$25:$D$34,Calculations!F181),0) -> 0 | K181: =IFERROR(INDEX('Variables and Defaults'!$D$42:$D$51,Calculations!F181),0) -> 0 | M181: 0 | N181: 0 | P181: 0 | Q181: 0 | S181: 0
B182: Personnel 14 | F182: 16 | G182: ='Variables and Defaults'!E216 -> 0 | H182: 1 | J182: =IFERROR(INDEX('Variables and Defaults'!$D$25:$D$34,Calculations!F182),0) -> 0 | K182: =IFERROR(INDEX('Variables and Defaults'!$D$42:$D$51,Calculations!F182),0) -> 0 | M182: 0 | N182: 0 | P182: 0 | Q182: 0 | S182: 0
B183: Personnel 15 | F183: 16 | G183: ='Variables and Defaults'!E217 -> 0 | H183: 1 | J183: =IFERROR(INDEX('Variables and Defaults'!$D$25:$D$34,Calculations!F183),0) -> 0 | K183: =IFERROR(INDEX('Variables and Defaults'!$D$42:$D$51,Calculations!F183),0) -> 0 | M183: 0 | N183: 0 | P183: 0 | Q183: 0 | S183: 0
A184: 9 | B184: Vaccine-specific education | C184: =MATCH('Variables and Defaults'!C218,Mechanics!$G$9:$G$12,0) -> 4 | D184: =Cost_10 -> 1 | T184: =SUM(S185:S199)*$C$16 -> 6.7262 | U184: =SUM(S185:S199)*12 -> 6.7262 | V184: =SUM(S185:S199) -> 0.5605166667 | W184: =SUM(S185:S199)*$C$18 -> 280.2583333 | X184: =CHOOSE(C184,T184,U184,V184,W184) -> 280.2583333 | Z184: ='Variables and Defaults'!H218 -> 0 | AA184: =CHOOSE(C184,Z184*$C$16,Z184*12,Z184,Z184*$C$18) -> 0 | AC184: =X184+AA184 -> 280.2583333
B185: Personnel 1 | F185: =MATCH('Variables and Defaults'!D219,Mechanics!$B$9:$B$24,0) -> 2 | G185: ='Variables and Defaults'!E219 -> 1 | H185: =MATCH('Variables and Defaults'!F219,Mechanics!$L$9:$L$11,0) -> 1 | J185: =IFERROR(INDEX('Variables and Defaults'!$D$25:$D$34,Calculations!F185),0) -> 25.87 | K185: =IFERROR(INDEX('Variables and Defaults'!$D$42:$D$51,Calculations!F185),0) -> 0.3 | M185: 0.4311666667 | N185: 206.96 | P185: 0.4311666667 | Q185: 0.12935 | S185: =G185*(P185+Q185) -> 0.5605166667
B186: Personnel 2 | F186: =MATCH('Variables and Defaults'!D220,Mechanics!$B$9:$B$24,0) -> 16 | G186: ='Variables and Defaults'!E220 -> 0 | H186: =MATCH('Variables and Defaults'!F220,Mechanics!$L$9:$L$11,0) -> 1 | J186: =IFERROR(INDEX('Variables and Defaults'!$D$25:$D$34,Calculations!F186),0) -> 0 | K186: =IFERROR(INDEX('Variables and Defaults'!$D$42:$D$51,Calculations!F186),0) -> 0 | M186: 0 | N186: 0 | P186: 0 | Q186: 0 | S186: 0
B187: Personnel 3 | F187: =MATCH('Variables and Defaults'!D221,Mechanics!$B$9:$B$24,0) -> 16 | G187: ='Variables and Defaults'!E221 -> 0 | H187: =MATCH('Variables and Defaults'!F221,Mechanics!$L$9:$L$11,0) -> 1 | J187: =IFERROR(INDEX('Variables and Defaults'!$D$25:$D$34,Calculations!F187),0) -> 0 | K187: =IFERROR(INDEX('Variables and Defaults'!$D$42:$D$51,Calculations!F187),0) -> 0 | M187: 0 | N187: 0 | P187: 0 | Q187: 0 | S187: 0
B188: Personnel 4 | F188: =MATCH('Variables and Defaults'!D222,Mechanics!$B$9:$B$24,0) -> 16 | G188: ='Variables and Defaults'!E222 -> 0 | H188: =MATCH('Variables and Defaults'!F222,Mechanics!$L$9:$L$11,0) -> 1 | J188: =IFERROR(INDEX('Variables and Defaults'!$D$25:$D$34,Calculations!F188),0) -> 0 | K188: =IFERROR(INDEX('Variables and Defaults'!$D$42:$D$51,Calculations!F188),0) -> 0 | M188: 0 | N188: 0 | P188: 0 | Q188: 0 | S188: 0
B189: Personnel 5 | F189: =MATCH('Variables and Defaults'!D223,Mechanics!$B$9:$B$24,0) -> 16 | G189: ='Variables and Defaults'!E223 -> 0 | H189: =MATCH('Variables and Defaults'!F223,Mechanics!$L$9:$L$11,0) -> 1 | J189: =IFERROR(INDEX('Variables and Defaults'!$D$25:$D$34,Calculations!F189),0) -> 0 | K189: =IFERROR(INDEX('Variables and Defaults'!$D$42:$D$51,Calculations!F189),0) -> 0 | M189: 0 | N189: 0 | P189: 0 | Q189: 0 | S189: 0
B190: Personnel 6 | F190: =MATCH('Variables and Defaults'!D224,Mechanics!$B$9:$B$24,0) -> 16 | G190: ='Variables and Defaults'!E224 -> 0 | H190: =MATCH('Variables and Defaults'!F224,Mechanics!$L$9:$L$11,0) -> 1 | J190: =IFERROR(INDEX('Variables and Defaults'!$D$25:$D$34,Calculations!F190),0) -> 0 | K190: =IFERROR(INDEX('Variables and Defaults'!$D$42:$D$51,Calculations!F190),0) -> 0 | M190: 0 | N190: 0 | P190: 0 | Q190: 0 | S190: 0
B191: Personnel 7 | F191: =MATCH('Variables and Defaults'!D225,Mechanics!$B$9:$B$24,0) -> 16 | G191: ='Variables and Defaults'!E225 -> 0 | H191: =MATCH('Variables and Defaults'!F225,Mechanics!$L$9:$L$11,0) -> 1 | J191: =IFERROR(INDEX('Variables and Defaults'!$D$25:$D$34,Calculations!F191),0) -> 0 | K191: =IFERROR(INDEX('Variables and Defaults'!$D$42:$D$51,Calculations!F191),0) -> 0 | M191: 0 | N191: 0 | P191: 0 | Q191: 0 | S191: 0
B192: Personnel 8 | F192: =MATCH('Variables and Defaults'!D226,Mechanics!$B$9:$B$24,0) -> 16 | G192: ='Variables and Defaults'!E226 -> 0 | H192: =MATCH('Variables and Defaults'!F226,Mechanics!$L$9:$L$11,0) -> 1 | J192: =IFERROR(INDEX('Variables and Defaults'!$D$25:$D$34,Calculations!F192),0) -> 0 | K192: =IFERROR(INDEX('Variables and Defaults'!$D$42:$D$51,Calculations!F192),0) -> 0 | M192: 0 | N192: 0 | P192: 0 | Q192: 0 | S192: 0
B193: Personnel 9 | F193: =MATCH('Variables and Defaults'!D227,Mechanics!$B$9:$B$24,0) -> 16 | G193: ='Variables and Defaults'!E227 -> 0 | H193: =MATCH('Variables and Defaults'!F227,Mechanics!$L$9:$L$11,0) -> 1 | J193: =IFERROR(INDEX('Variables and Defaults'!$D$25:$D$34,Calculations!F193),0) -> 0 | K193: =IFERROR(INDEX('Variables and Defaults'!$D$42:$D$51,Calculations!F193),0) -> 0 | M193: 0 | N193: 0 | P193: 0 | Q193: 0 | S193: 0
B194: Personnel 10 | F194: =MATCH('Variables and Defaults'!D228,Mechanics!$B$9:$B$24,0) -> 16 | G194: ='Variables and Defaults'!E228 -> 0 | H194: =MATCH('Variables and Defaults'!F228,Mechanics!$L$9:$L$11,0) -> 1 | J194: =IFERROR(INDEX('Variables and Defaults'!$D$25:$D$34,Calculations!F194),0) -> 0 | K194: =IFERROR(INDEX('Variables and Defaults'!$D$42:$D$51,Calculations!F194),0) -> 0 | M194: 0 | N194: 0 | P194: 0 | Q194: 0 | S194: 0
B195: Personnel 11 | F195: =MATCH('Variables and Defaults'!D229,Mechanics!$B$9:$B$24,0) -> 16 | G195: ='Variables and Defaults'!E229 -> 0 | H195: =MATCH('Variables and Defaults'!F229,Mechanics!$L$9:$L$11,0) -> 1 | J195: =IFERROR(INDEX('Variables and Defaults'!$D$25:$D$34,Calculations!F195),0) -> 0 | K195: =IFERROR(INDEX('Variables and Defaults'!$D$42:$D$51,Calculations!F195),0) -> 0 | M195: =J195/60 -> 0 | N195: =J195*8 -> 0 | P195: =CHOOSE(H195,M195,J195,N195) -> 0 | Q195: =P195*K195 -> 0 | S195: =G195*(P195+Q195) -> 0
B196: Personnel 12 | F196: =MATCH('Variables and Defaults'!D230,Mechanics!$B$9:$B$24,0) -> 16 | G196: ='Variables and Defaults'!E230 -> 0 | H196: =MATCH('Variables and Defaults'!F230,Mechanics!$L$9:$L$11,0) -> 1 | J196: =IFERROR(INDEX('Variables and Defaults'!$D$25:$D$34,Calculations!F196),0) -> 0 | K196: =IFERROR(INDEX('Variables and Defaults'!$D$42:$D$51,Calculations!F196),0) -> 0 | M196: 0 | N196: 0 | P196: 0 | Q196: 0 | S196: 0
B197: Personnel 13 | F197: =MATCH('Variables and Defaults'!D231,Mechanics!$B$9:$B$24,0) -> 16 | G197: ='Variables and Defaults'!E231 -> 0 | H197: =MATCH('Variables and Defaults'!F231,Mechanics!$L$9:$L$11,0) -> 1 | J197: =IFERROR(INDEX('Variables and Defaults'!$D$25:$D$34,Calculations!F197),0) -> 0 | K197: =IFERROR(INDEX('Variables and Defaults'!$D$42:$D$51,Calculations!F197),0) -> 0 | M197: 0 | N197: 0 | P197: 0 | Q197: 0 | S197: 0
B198: Personnel 14 | F198: =MATCH('Variables and Defaults'!D232,Mechanics!$B$9:$B$24,0) -> 16 | G198: ='Variables and Defaults'!E232 -> 0 | H198: =MATCH('Variables and Defaults'!F232,Mechanics!$L$9:$L$11,0) -> 1 | J198: =IFERROR(INDEX('Variables and Defaults'!$D$25:$D$34,Calculations!F198),0) -> 0 | K198: =IFERROR(INDEX('Variables and Defaults'!$D$42:$D$51,Calculations!F198),0) -> 0 | M198: 0 | N198: 0 | P198: 0 | Q198: 0 | S198: 0
B199: Personnel 15 | F199: =MATCH('Variables and Defaults'!D233,Mechanics!$B$9:$B$24,0) -> 16 | G199: ='Variables and Defaults'!E233 -> 0 | H199: =MATCH('Variables and Defaults'!F233,Mechanics!$L$9:$L$11,0) -> 1 | J199: =IFERROR(INDEX('Variables and Defaults'!$D$25:$D$34,Calculations!F199),0) -> 0 | K199: =IFERROR(INDEX('Variables and Defaults'!$D$42:$D$51,Calculations!F199),0) -> 0 | M199: 0 | N199: 0 | P199: 0 | Q199: 0 | S199: 0
A200: 10 | B200: Retrieval of Vaccine and Supplies
B201: First Dose | C201: =MATCH('Variables and Defaults'!C235,Mechanics!$G$9:$G$12,0) -> 4 | D201: =Cost_11 -> 1 | T201: =SUM(S202:S216)*$C$16 -> 13.4524 | U201: =SUM(S202:S216)*12 -> 13.4524 | V201: =SUM(S202:S216) -> 1.121033333 | W201: =SUM(S202:S216)*$C$20 -> 560.5166667 | X201: =CHOOSE(C201,T201,U201,V201,W201) -> 560.5166667 | Z201: ='Variables and Defaults'!H235 -> 0 | AA201: =CHOOSE(C201,Z201*$C$16,Z201*12,Z201,Z201*$C$18) -> 0 | AC201: =X201+AA201 -> 560.5166667
B202: Personnel 1 | F202: =MATCH('Variables and Defaults'!D236,Mechanics!$B$9:$B$24,0) -> 2 | G202: ='Variables and Defaults'!E236 -> 2 | H202: =MATCH('Variables and Defaults'!F236,Mechanics!$L$9:$L$11,0) -> 1 | J202: =IFERROR(INDEX('Variables and Defaults'!$D$25:$D$34,Calculations!F202),0) -> 25.87 | K202: =IFERROR(INDEX('Variables and Defaults'!$D$42:$D$51,Calculations!F202),0) -> 0.3 | M202: 0.4311666667 | N202: 206.96 | P202: 0.4311666667 | Q202: 0.12935 | S202: =G202*(P202+Q202) -> 1.121033333
B203: Personnel 2 | F203: =MATCH('Variables and Defaults'!D237,Mechanics!$B$9:$B$24,0) -> 16 | G203: ='Variables and Defaults'!E237 -> 0 | H203: =MATCH('Variables and Defaults'!F237,Mechanics!$L$9:$L$11,0) -> 1 | J203: =IFERROR(INDEX('Variables and Defaults'!$D$25:$D$34,Calculations!F203),0) -> 0 | K203: =IFERROR(INDEX('Variables and Defaults'!$D$42:$D$51,Calculations!F203),0) -> 0 | M203: 0 | N203: 0 | P203: 0 | Q203: 0 | S203: 0
B204: Personnel 3 | F204: =MATCH('Variables and Defaults'!D238,Mechanics!$B$9:$B$24,0) -> 16 | G204: ='Variables and Defaults'!E238 -> 0 | H204: =MATCH('Variables and Defaults'!F238,Mechanics!$L$9:$L$11,0) -> 1 | J204: =IFERROR(INDEX('Variables and Defaults'!$D$25:$D$34,Calculations!F204),0) -> 0 | K204: =IFERROR(INDEX('Variables and Defaults'!$D$42:$D$51,Calculations!F204),0) -> 0 | M204: 0 | N204: 0 | P204: 0 | Q204: 0 | S204: 0
B205: Personnel 4 | F205: =MATCH('Variables and Defaults'!D239,Mechanics!$B$9:$B$24,0) -> 16 | G205: ='Variables and Defaults'!E239 -> 0 | H205: =MATCH('Variables and Defaults'!F239,Mechanics!$L$9:$L$11,0) -> 1 | J205: =IFERROR(INDEX('Variables and Defaults'!$D$25:$D$34,Calculations!F205),0) -> 0 | K205: =IFERROR(INDEX('Variables and Defaults'!$D$42:$D$51,Calculations!F205),0) -> 0 | M205: 0 | N205: 0 | P205: 0 | Q205: 0 | S205: 0
B206: Personnel 5 | F206: =MATCH('Variables and Defaults'!D240,Mechanics!$B$9:$B$24,0) -> 16 | G206: ='Variables and Defaults'!E240 -> 0 | H206: =MATCH('Variables and Defaults'!F240,Mechanics!$L$9:$L$11,0) -> 1 | J206: =IFERROR(INDEX('Variables and Defaults'!$D$25:$D$34,Calculations!F206),0) -> 0 | K206: =IFERROR(INDEX('Variables and Defaults'!$D$42:$D$51,Calculations!F206),0) -> 0 | M206: 0 | N206: 0 | P206: 0 | Q206: 0 | S206: 0
B207: Personnel 6 | F207: =MATCH('Variables and Defaults'!D241,Mechanics!$B$9:$B$24,0) -> 16 | G207: ='Variables and Defaults'!E241 -> 0 | H207: =MATCH('Variables and Defaults'!F241,Mechanics!$L$9:$L$11,0) -> 1 | J207: =IFERROR(INDEX('Variables and Defaults'!$D$25:$D$34,Calculations!F207),0) -> 0 | K207: =IFERROR(INDEX('Variables and Defaults'!$D$42:$D$51,Calculations!F207),0) -> 0 | M207: 0 | N207: 0 | P207: 0 | Q207: 0 | S207: 0
B208: Personnel 7 | F208: =MATCH('Variables and Defaults'!D242,Mechanics!$B$9:$B$24,0) -> 16 | G208: ='Variables and Defaults'!E242 -> 0 | H208: =MATCH('Variables and Defaults'!F242,Mechanics!$L$9:$L$11,0) -> 1 | J208: =IFERROR(INDEX('Variables and Defaults'!$D$25:$D$34,Calculations!F208),0) -> 0 | K208: =IFERROR(INDEX('Variables and Defaults'!$D$42:$D$51,Calculations!F208),0) -> 0 | M208: 0 | N208: 0 | P208: 0 | Q208: 0 | S208: 0
B209: Personnel 8 | F209: =MATCH('Variables and Defaults'!D243,Mechanics!$B$9:$B$24,0) -> 16 | G209: ='Variables and Defaults'!E243 -> 0 | H209: =MATCH('Variables and Defaults'!F243,Mechanics!$L$9:$L$11,0) -> 1 | J209: =IFERROR(INDEX('Variables and Defaults'!$D$25:$D$34,Calculations!F209),0) -> 0 | K209: =IFERROR(INDEX('Variables and Defaults'!$D$42:$D$51,Calculations!F209),0) -> 0 | M209: 0 | N209: 0 | P209: 0 | Q209: 0 | S209: 0
... 300 more rows

Sheet Mechanics (hidden)
A2: Password | B2: OHA2020
A4: Lock Toggle | B4: 1 | C4: (1=lock, else = unlock)
A6: DropDown Lists
B8: Personnel Type | G8: Frequency - DropDown 1 | L8: Time Unit
A9: 1 | B9: =IF('Variables and Defaults'!D8="","[no user entry]",'Variables and Defaults'!D8) -> Administrative Support | F9: 1 | G9: Per order | K9: 1 | L9: mins
A10: 2 | B10: =IF('Variables and Defaults'!D9="","[no user entry]",'Variables and Defaults'!D9) -> Public Health Nurse I | F10: 2 | G10: Per month | K10: 2 | L10: hours
A11: 3 | B11: =IF('Variables and Defaults'!D10=0,"[no user entry]",'Variables and Defaults'!D10) -> [no user entry] | F11: 3 | G11: Per year | K11: 3 | L11: days
A12: 4 | B12: =IF('Variables and Defaults'!D11=0,"[no user entry]",'Variables and Defaults'!D11) -> [no user entry] | F12: 4 | G12: Per vaccine visit
A13: 5 | B13: =IF('Variables and Defaults'!D12=0,"[no user entry]",'Variables and Defaults'!D12) -> [no user entry]
A14: 6 | B14: =IF('Variables and Defaults'!D13=0,"[no user entry]",'Variables and Defaults'!D13) -> [no user entry]
A15: 7 | B15: =IF('Variables and Defaults'!D14=0,"[no user entry]",'Variables and Defaults'!D14) -> [no user entry]
A16: 8 | B16: =IF('Variables and Defaults'!D15=0,"[no user entry]",'Variables and Defaults'!D15) -> [no user entry]
A17: 9 | B17: =IF('Variables and Defaults'!D16=0,"[no user entry]",'Variables and Defaults'!D16) -> [no user entry]
A18: 10 | B18: =IF('Variables and Defaults'!D17=0,"[no user entry]",'Variables and Defaults'!D17) -> [no user entry]
A19: 11 | B19: =IF('Variables and Defaults'!D18=0,"[no user entry]",'Variables and Defaults'!D18) -> [no user entry]
A20: 12 | B20: =IF('Variables and Defaults'!D19=0,"[no user entry]",'Variables and Defaults'!D19) -> [no user entry]
A21: 13 | B21: =IF('Variables and Defaults'!D20=0,"[no user entry]",'Variables and Defaults'!D20) -> [no user entry]
A22: 14 | B22: =IF('Variables and Defaults'!D21=0,"[no user entry]",'Variables and Defaults'!D21) -> [no user entry]
A23: 15 | B23: =IF('Variables and Defaults'!D22=0,"[no user entry]",'Variables and Defaults'!D22) -> [no user entry]
A24: 16 | B24: No Selection
A26: # of Personnel
A28: 1 | B28: Order vaccines | I28: 1 | J28: Cost_1
A29: 2 | B29: Receive vaccines | I29: 1 | J29: Cost_2
A30: 3 | B30: Pay for vaccines | I30: 1 | J30: Cost_3
A31: 4 | B31: Storage and handling | I31: 1 | J31: Cost_4
A32: 5 | B32: Vaccine reconciliation | I32: 1 | J32: Cost_5
A33: 6 | B33: Emergency | I33: 1 | J33: Cost_6
A35: 7 | B35: Registration upon arrival/Vaccine eligibility screening | I35: 1 | J35: Cost_7
A36: 8 | B36: Assessment/Discussion of shots due | I36: 1 | J36: Cost_8
A37: 9 | B37: Vaccine-specific education/Provide vaccine information statement(s) | I37: 1 | J37: Cost_9
A38: 10 | B38: Retrieval Vaccines | I38: 1 | J38: Cost_10
A39: 11 | B39: Administering Vaccine | I39: 1 | J39: Cost_11
A40: 12 | B40: Wastage Disposal | I40: 1 | J40: Cost_12
A41: 13 | B41: Checking out | I41: 1 | J41: Cost_13
A42: 14 | B42: Document the Vaccinations | I42: 1 | J42: Cost_14
I43: 1 | J43: Cost_15
A44: 15 | B44: Medical supplies
A45: 16 | B45: Office supplies | I45: 1 | J45: Cost_16
A46: 17 | B46: Storage Equipment Procurement | I46: 1 | J46: Cost_17
A47: 18 | B47: Storage Equipment Maintenance | I47: 1 | J47: Cost_18
A49: 19 | B49: Billing | I49: 1 | J49: Cost_19
A50: 20 | B50: Administrative Support | I50: 1 | J50: Cost_20
A52: 21 | B52: Other Services - Placeholder 1 | I52: 1 | J52: Cost_21
A53: 22 | B53: Other Services - Placeholder 2 | I53: 1 | J53: Cost_22
A54: 23 | B54: Other Services - Placeholder 3 | I54: 1 | J54: Cost_23
A55: 24 | B55: Other Services - Placeholder 4 | I55: 1 | J55: Cost_24
A56: 26 | B56: Other Services - Placeholder 5 | I56: 1 | J56: Cost_25
A58: References
A60: Ref_VaccineMngmt | B60: See the sheet labeled “User Guide” for a detailed explanation of each entry type (frequency, type, time spent, and unit). The Vaccine Management cost category includes the following six cost items: 1. Order vaccines- Staff time associated with ordering vaccines (e.g., planning for order, placing order, contacting manufacturers, etc.). 2. Receive vaccine orders- Staff time spent receiving vaccine orders or otherwise dealing with vaccine shipments. 3. Pay for vaccines- Staff time spent dealing with vaccine payments. 4. Storage and handling- Staff time spent moving vaccine between storage units, managing temperature logs, etc. 5. Vaccine reconciliation- Staff time spent ensuring on-hand inventory matches EHR or other records maintained to track inventory, doses administered, and expired/wasted vaccine. Includes time spent shipping back and reporting expired vaccine. 6. Emergency- Staff costs associated with an emergency event that has potential to impact the stability of vaccine temperatures (e.g., loss of power). | R60: Ref_NonPersonnel_1 | S60: See the sheet labeled “User Guide” for an explanation of non-personnel costs. For the cost items included in the Vaccine Management section, possible non-personnel costs may include: • Shipping costs associated with ordering vaccines • Cost of rental storage spaces, transporting vaccines, etc. during an emergency (i.e., under the “Emergency” line item)
A88: Ref_Administering | B88: See the sheet labeled “User Guide” for a detailed explanation of each entry type (frequency, type, time spent, and unit). The Administering the Vaccine section includes the following eight cost components: 1. Registration- Includes registration activities upon the patient’s arrival and vaccine eligibility screening. 2. Assessment/discussion of shots due- Staff time spent determining vaccines due, including potential precautions/contraindications. NOTE: This cost component is estimated by first dose and subsequent dose(s) and requires Users to enter time spent for both categories. 3. Vaccine-specific education- Time spent providing comprehensive vaccine information to patients, such as Vaccine Information Statements and any after-care instructions as needed. 4. Retrieval of vaccine and supplies- Time spent preparing both the vaccines and the examination room (e.g., retrieval of vaccine from refrigerator/freezer, drawing up vaccine, laying out Band-Aids). NOTE: This cost component is estimated by first dose and subsequent dose(s) and requires Users to enter time spent for both categories. 5. Administering vaccines- Time spent to actually administer the vaccines for a patient. NOTE: This cost component is estimated by first dose and subsequent dose(s) and requires Users to enter time spent for both categories. 6. Wastage disposal- Time spent disposing of syringes and other supplies following vaccine administration. 7. Checking out- Time spent on activities related to checking the patient out. 8. Documenting vaccinations- Time spent documenting immunizations in the EHR/patient’s medical record/ ALERT IIS. NOTE: This cost component is estimated by first dose and subsequent dose(s) and requires Users to enter time spent for both categories. | R88: Ref_NonPersonnel_2 | S88: See the sheet labeled “User Guide” for an explanation of non-personnel costs. For the eight cost items included in the Administering Vaccines section, the default non-personnel costs are set at $0.
A129: Ref_Supplies | B129: See the sheet labeled “User Guide” for a detailed explanation of each entry type (frequency, type, time spent, and unit). Supply costs may vary greatly from year to year. Users can either enter an average yearly cost or update the cost annually as appropriate. The Supplies section includes the following four cost components: 1. Medical supplies- Time spent ordering, receiving, and managing immunization-related medical supplies (e.g., Band-Aids, alcohol wipes, gloves, syringes). Use the “non-personnel costs” section to enter actual cost of medical supplies. 2. Office administrative supplies- Time spent ordering, receiving, and managing immunization-related office supplies (e.g., paper, printers, computers, envelopes). Use the “non-personnel costs” section to enter actual cost of office supplies. 3. Storage equipment procurement- Time spent procuring vaccine storage equipment (e.g., refrigerator, freezer, temperature tracking devices). Use the “non-personnel costs” section to enter actual cost of storage equipment. 4. Storage equipment maintenance- Time spent repairing/maintaining vaccine storage equipment. Use the “non-personnel costs” section to enter costs associated with payment to a third-party vendor for storage equipment repair/maintenance. | R129: Ref_NonPersonnel_3 | S129: See the sheet labeled “User Guide” for an explanation of non-personnel costs. Similar to personnel costs, Users should enter either an average cost of supplies per year or update this cost annually to reflect actual costs incurred. For the four cost items included in the Supplies section, possible non-personnel costs may include: • Actual cost of immunization-related medical supplies (e.g., Band-Aids, alcohol wipes, gloves, syringes) • Actual cost of office supplies used as part of providing immunization services (e.g., paper, printers, computers, envelopes) • Actual cost of vaccine storage equipment purchased (e.g., refrigerator, freezer, temperature tracking devices) • Maintenance costs for vaccine storage equipment, including equipment accessories, costs paid to a third-party vendor for conducting the maintenance, etc.
A163: Ref_Support | B163: See the sheet labeled “User Guide” for a detailed explanation of each entry type (frequency, type, time spent, and unit). The Administrative Support section includes the following two cost components: 1. Billing Time spent on immunization-related billing activities (e.g., submitting claims, contact with insurers and patients, re-billing as needed). LPHAs that outsource some or all of their billing should use the “non-personnel costs” section to enter these costs. 2. Administrative staff support Time spent supporting immunization services (e.g., providing medical/vaccination records, scheduling appointments, interpreting for non-English speaking patients/parents). Overhead activities for supporting the LPHA’s overall functions could also be included. | R163: Ref_NonPersonnel_4 | S163: See the sheet labeled “User Guide” for an explanation of non-personnel costs. For the items included in the Administrative Support section, non-personnel costs for some LPHAs are those associated with outsourced billing services if conducted by a thirty-party vendor.
A180: Ref_Others | B180: See the sheet labeled “User Guide” for a detailed explanation of each entry type (frequency, type, time spent, and unit). Use the five placeholders in the Other Services section to enter other cost items that are not captured above and should be included in the administrative cost of immunization services. Examples include clinic training, advertising costs, coordination of the LPHA immunization program, etc. | R180: Ref_NonPersonnel_5 | S180: See the sheet labeled “User Guide” for an explanation of non-personnel costs. Utilize these five placeholders to include any other costs (per frequency indicated) incurred by the LPHA as part of providing immunization services.
